{"text_format":"1","workbook":"xlsx","n_sheets":3,"sheets":["Лист1","Лист2","Лист3"],"not_rendered":{"charts":0,"images":0,"macros":1,"external_links":0,"defined_names":0,"comments":0,"pivot_tables":0},"unopened":[],"bounds":{"document_bytes":16777216,"sheet_cells":100000,"rows_first":2000,"rows_last":500,"rows_between":2000,"halvings":0,"cell_chars":16384,"cell_head_chars":4096},"cells_cut":0,"cells_raw":0,"read":"whole","date_system":"1900"}

{"sheet":"Лист1","index":0,"n_rows":91,"n_cols":50,"rows_kept":91,"cut":false,"hidden":false,"merged":[]}
[]
[]
[null,null,1.2,null,null,null,null,null,null,{"$f":"K3/$Z$5*12","v":{"$error":"#DIV/0!"}},{"$f":"Q3/$G$3","v":{"$error":"#DIV/0!"}},8.2178000000000001E-2,8.2178000000000001E-2,null,null,15,331.13,26,1.47,12.74,410.89,8.2100000000000006E-2,0.55000000000000004,"StopLoss=60 ","TakeProfit=170 ","PartClose_Targets_1=70 ","PartClose_Percents_1=50 ","PartClose_Targets_2=35 ","PartClose_Percents_2=20 ","ExceedPercent=50 ","MinSignalCandleSize=10 ","SignalBarStopLossDistance=3 ","Stch_KPeriod=9 ","Stch_DPeriod=2 ","Stch_Slowing=8 ","Stch_MinMaxLevels=2 ","RSI_Period=11 ","RSI_MinMaxLevels=2","VarOptimTest=0 ","Counter=1 ","Magic=1005 ","Slippage=3 ","Lot=0.2 ","MM_MaxRisk=0 ","MinPreSignalCandleSize=10 ","TR_TrailingStart=0 ","TR_TrailingDistance=9 ","TR_TrailingStep=2 ","BE_Start=0 ","BE_Level=1"]
[null,null,1.2,null,null,null,null,null,null,{"$f":"K4/$Z$5*12","v":{"$error":"#DIV/0!"}},{"$f":"Q4/$G$3","v":{"$error":"#DIV/0!"}},8.3227999999999996E-2,8.3227999999999996E-2,null,null,17,409.41,31,1.64,13.21,416.14,8.3099999999999993E-2,0.45,"StopLoss=50 ","TakeProfit=150 ","PartClose_Targets_1=55 ","PartClose_Percents_1=70 ","PartClose_Targets_2=30 ","PartClose_Percents_2=30 ","ExceedPercent=30 ","MinSignalCandleSize=15 ","SignalBarStopLossDistance=6 ","Stch_KPeriod=11 ","Stch_DPeriod=2 ","Stch_Slowing=2 ","Stch_MinMaxLevels=2 ","RSI_Period=11 ","RSI_MinMaxLevels=2","VarOptimTest=0 ","Counter=1 ","Magic=1005 ","Slippage=3 ","Lot=0.2 ","MM_MaxRisk=0 ","MinPreSignalCandleSize=10 ","TR_TrailingStart=0 ","TR_TrailingDistance=9 ","TR_TrailingStep=2 ","BE_Start=0 ","BE_Level=1"]
[null,null,1.2,null,null,null,null,null,null,{"$f":"K5/$Z$5*12","v":{"$error":"#DIV/0!"}},{"$f":"Q5/$G$3","v":{"$error":"#DIV/0!"}},8.4000000000000005E-2,8.4000000000000005E-2,null,null,18,341.67,31,1.47,11.02,420,8.3900000000000002E-2,0.48,"StopLoss=90 ","TakeProfit=180 ","PartClose_Targets_1=35 ","PartClose_Percents_1=30 ","PartClose_Targets_2=20 ","PartClose_Percents_2=20 ","ExceedPercent=50 ","MinSignalCandleSize=10 ","SignalBarStopLossDistance=6 ","Stch_KPeriod=7 ","Stch_DPeriod=2 ","Stch_Slowing=8 ","Stch_MinMaxLevels=2 ","RSI_Period=11 ","RSI_MinMaxLevels=2","VarOptimTest=0 ","Counter=1 ","Magic=1005 ","Slippage=3 ","Lot=0.2 ","MM_MaxRisk=0 ","MinPreSignalCandleSize=10 ","TR_TrailingStart=0 ","TR_TrailingDistance=9 ","TR_TrailingStep=2 ","BE_Start=0 ","BE_Level=1"]
[null,null,1.2,null,null,null,null,null,null,{"$f":"K6/$Z$5*12","v":{"$error":"#DIV/0!"}},{"$f":"Q6/$G$3","v":{"$error":"#DIV/0!"}},8.542000000000001E-2,8.542000000000001E-2,null,null,19,470.32,28,1.65,16.8,427.1,8.5300000000000001E-2,0.57999999999999996,"StopLoss=60 ","TakeProfit=180 ","PartClose_Targets_1=50 ","PartClose_Percents_1=20 ","PartClose_Targets_2=35 ","PartClose_Percents_2=20 ","ExceedPercent=50 ","MinSignalCandleSize=10 ","SignalBarStopLossDistance=3 ","Stch_KPeriod=7 ","Stch_DPeriod=6 ","Stch_Slowing=8 ","Stch_MinMaxLevels=2 ","RSI_Period=11 ","RSI_MinMaxLevels=2","VarOptimTest=0 ","Counter=1 ","Magic=1005 ","Slippage=3 ","Lot=0.2 ","MM_MaxRisk=0 ","MinPreSignalCandleSize=10 ","TR_TrailingStart=0 ","TR_TrailingDistance=9 ","TR_TrailingStep=2 ","BE_Start=0 ","BE_Level=1"]
[null,null,1.2,null,null,null,null,null,null,{"$f":"K7/$Z$5*12","v":{"$error":"#DIV/0!"}},{"$f":"Q7/$G$3","v":{"$error":"#DIV/0!"}},8.6085999999999996E-2,8.6085999999999996E-2,null,null,20,739.87,33,1.99,22.42,430.43,7.1999999999999995E-2,0.32,"StopLoss=80 ","TakeProfit=120 ","PartClose_Targets_1=65 ","PartClose_Percents_1=60 ","PartClose_Targets_2=20 ","PartClose_Percents_2=40 ","ExceedPercent=30 ","MinSignalCandleSize=25 ","SignalBarStopLossDistance=0 ","Stch_KPeriod=7 ","Stch_DPeriod=2 ","Stch_Slowing=2 ","Stch_MinMaxLevels=2 ","RSI_Period=3 ","RSI_MinMaxLevels=4","VarOptimTest=0 ","Counter=1 ","Magic=1005 ","Slippage=3 ","Lot=0.2 ","MM_MaxRisk=0 ","MinPreSignalCandleSize=10 ","TR_TrailingStart=0 ","TR_TrailingDistance=9 ","TR_TrailingStep=2 ","BE_Start=0 ","BE_Level=1"]
[null,null,1.2,null,null,null,null,null,null,{"$f":"K8/$Z$5*12","v":{"$error":"#DIV/0!"}},{"$f":"Q8/$G$3","v":{"$error":"#DIV/0!"}},8.6512000000000006E-2,8.6512000000000006E-2,null,null,21,520.6,38,2.17,13.7,432.56,8.3699999999999997E-2,0.35,"StopLoss=80 ","TakeProfit=100 ","PartClose_Targets_1=25 ","PartClose_Percents_1=70 ","PartClose_Targets_2=65 ","PartClose_Percents_2=20 ","ExceedPercent=30 ","MinSignalCandleSize=10 ","SignalBarStopLossDistance=0 ","Stch_KPeriod=5 ","Stch_DPeriod=6 ","Stch_Slowing=4 ","Stch_MinMaxLevels=2 ","RSI_Period=3 ","RSI_MinMaxLevels=2","VarOptimTest=0 ","Counter=1 ","Magic=1005 ","Slippage=3 ","Lot=0.2 ","MM_MaxRisk=0 ","MinPreSignalCandleSize=10 ","TR_TrailingStart=0 ","TR_TrailingDistance=9 ","TR_TrailingStep=2 ","BE_Start=0 ","BE_Level=1"]
[null,null,1.2,null,null,null,null,null,null,{"$f":"K9/$Z$5*12","v":{"$error":"#DIV/0!"}},{"$f":"Q9/$G$3","v":{"$error":"#DIV/0!"}},8.8177999999999992E-2,8.8177999999999992E-2,null,null,22,383.6,28,1.49,13.7,440.89,8.8099999999999998E-2,0.53,"StopLoss=80 ","TakeProfit=190 ","PartClose_Targets_1=55 ","PartClose_Percents_1=30 ","PartClose_Targets_2=25 ","PartClose_Percents_2=20 ","ExceedPercent=50 ","MinSignalCandleSize=10 ","SignalBarStopLossDistance=6 ","Stch_KPeriod=5 ","Stch_DPeriod=6 ","Stch_Slowing=6 ","Stch_MinMaxLevels=2 ","RSI_Period=11 ","RSI_MinMaxLevels=2","VarOptimTest=0 ","Counter=1 ","Magic=1005 ","Slippage=3 ","Lot=0.2 ","MM_MaxRisk=0 ","MinPreSignalCandleSize=10 ","TR_TrailingStart=0 ","TR_TrailingDistance=9 ","TR_TrailingStep=2 ","BE_Start=0 ","BE_Level=1"]
[null,null,1.2,null,null,null,null,null,null,{"$f":"K10/$Z$5*12","v":{"$error":"#DIV/0!"}},{"$f":"Q10/$G$3","v":{"$error":"#DIV/0!"}},8.9149999999999993E-2,8.9149999999999993E-2,null,null,23,334.28,32,1.52,10.45,445.75,8.8999999999999996E-2,0.37,"StopLoss=60 ","TakeProfit=90 ","PartClose_Targets_1=35 ","PartClose_Percents_1=20 ","PartClose_Targets_2=30 ","PartClose_Percents_2=30 ","ExceedPercent=30 ","MinSignalCandleSize=15 ","SignalBarStopLossDistance=6 ","Stch_KPeriod=11 ","Stch_DPeriod=2 ","Stch_Slowing=2 ","Stch_MinMaxLevels=4 ","RSI_Period=11 ","RSI_MinMaxLevels=2","VarOptimTest=0 ","Counter=1 ","Magic=1005 ","Slippage=3 ","Lot=0.2 ","MM_MaxRisk=0 ","MinPreSignalCandleSize=10 ","TR_TrailingStart=0 ","TR_TrailingDistance=9 ","TR_TrailingStep=2 ","BE_Start=0 ","BE_Level=1"]
[null,null,1.2,null,null,null,null,null,null,{"$f":"K11/$Z$5*12","v":{"$error":"#DIV/0!"}},{"$f":"Q11/$G$3","v":{"$error":"#DIV/0!"}},8.9821999999999999E-2,8.9821999999999999E-2,null,null,24,465.19,23,1.79,20.23,449.11,8.9700000000000002E-2,0.59,"StopLoss=70 ","TakeProfit=190 ","PartClose_Targets_1=65 ","PartClose_Percents_1=50 ","PartClose_Targets_2=50 ","PartClose_Percents_2=30 ","ExceedPercent=30 ","MinSignalCandleSize=15 ","SignalBarStopLossDistance=3 ","Stch_KPeriod=5 ","Stch_DPeriod=2 ","Stch_Slowing=6 ","Stch_MinMaxLevels=2 ","RSI_Period=11 ","RSI_MinMaxLevels=2","VarOptimTest=0 ","Counter=1 ","Magic=1005 ","Slippage=3 ","Lot=0.2 ","MM_MaxRisk=0 ","MinPreSignalCandleSize=10 ","TR_TrailingStart=0 ","TR_TrailingDistance=9 ","TR_TrailingStep=2 ","BE_Start=0 ","BE_Level=1"]
[null,null,1.2,null,null,null,null,null,null,{"$f":"K12/$Z$5*12","v":{"$error":"#DIV/0!"}},{"$f":"Q12/$G$3","v":{"$error":"#DIV/0!"}},9.2142000000000002E-2,9.2142000000000002E-2,null,null,25,398.91,26,1.53,15.34,460.71,9.1999999999999998E-2,0.57999999999999996,"StopLoss=90 ","TakeProfit=190 ","PartClose_Targets_1=60 ","PartClose_Percents_1=20 ","PartClose_Targets_2=45 ","PartClose_Percents_2=40 ","ExceedPercent=50 ","MinSignalCandleSize=10 ","SignalBarStopLossDistance=3 ","Stch_KPeriod=11 ","Stch_DPeriod=2 ","Stch_Slowing=8 ","Stch_MinMaxLevels=2 ","RSI_Period=11 ","RSI_MinMaxLevels=2","VarOptimTest=0 ","Counter=1 ","Magic=1005 ","Slippage=3 ","Lot=0.2 ","MM_MaxRisk=0 ","MinPreSignalCandleSize=10 ","TR_TrailingStart=0 ","TR_TrailingDistance=9 ","TR_TrailingStep=2 ","BE_Start=0 ","BE_Level=1"]
[null,null,1.2,null,null,null,null,null,null,{"$f":"K13/$Z$5*12","v":{"$error":"#DIV/0!"}},{"$f":"Q13/$G$3","v":{"$error":"#DIV/0!"}},9.2200000000000004E-2,9.2200000000000004E-2,null,null,26,401.71,28,1.5,14.35,461,9.2100000000000001E-2,0.53,"StopLoss=60 ","TakeProfit=180 ","PartClose_Targets_1=50 ","PartClose_Percents_1=20 ","PartClose_Targets_2=35 ","PartClose_Percents_2=20 ","ExceedPercent=50 ","MinSignalCandleSize=10 ","SignalBarStopLossDistance=6 ","Stch_KPeriod=7 ","Stch_DPeriod=6 ","Stch_Slowing=4 ","Stch_MinMaxLevels=2 ","RSI_Period=11 ","RSI_MinMaxLevels=2","VarOptimTest=0 ","Counter=1 ","Magic=1005 ","Slippage=3 ","Lot=0.2 ","MM_MaxRisk=0 ","MinPreSignalCandleSize=10 ","TR_TrailingStart=0 ","TR_TrailingDistance=9 ","TR_TrailingStep=2 ","BE_Start=0 ","BE_Level=1"]
[null,null,1.2,null,null,null,null,null,null,{"$f":"K14/$Z$5*12","v":{"$error":"#DIV/0!"}},{"$f":"Q14/$G$3","v":{"$error":"#DIV/0!"}},9.2338000000000003E-2,9.2338000000000003E-2,null,null,27,261.69,21,1.45,12.46,461.69,9.2200000000000004E-2,0.56000000000000005,"StopLoss=70 ","TakeProfit=180 ","PartClose_Targets_1=55 ","PartClose_Percents_1=30 ","PartClose_Targets_2=45 ","PartClose_Percents_2=20 ","ExceedPercent=30 ","MinSignalCandleSize=10 ","SignalBarStopLossDistance=3 ","Stch_KPeriod=5 ","Stch_DPeriod=6 ","Stch_Slowing=8 ","Stch_MinMaxLevels=2 ","RSI_Period=3 ","RSI_MinMaxLevels=2","VarOptimTest=0 ","Counter=1 ","Magic=1005 ","Slippage=3 ","Lot=0.2 ","MM_MaxRisk=0 ","MinPreSignalCandleSize=10 ","TR_TrailingStart=0 ","TR_TrailingDistance=9 ","TR_TrailingStep=2 ","BE_Start=0 ","BE_Level=1"]
[null,null,1.2,null,null,null,null,null,null,{"$f":"K15/$Z$5*12","v":{"$error":"#DIV/0!"}},{"$f":"Q15/$G$3","v":{"$error":"#DIV/0!"}},9.2876E-2,9.2876E-2,null,null,28,621.78,22,1.99,28.26,464.38,9.1499999999999998E-2,0.61,"StopLoss=40 ","TakeProfit=180 ","PartClose_Targets_1=70 ","PartClose_Percents_1=20 ","PartClose_Targets_2=60 ","PartClose_Percents_2=20 ","ExceedPercent=30 ","MinSignalCandleSize=10 ","SignalBarStopLossDistance=6 ","Stch_KPeriod=5 ","Stch_DPeriod=2 ","Stch_Slowing=2 ","Stch_MinMaxLevels=2 ","RSI_Period=15 ","RSI_MinMaxLevels=2","VarOptimTest=0 ","Counter=1 ","Magic=1005 ","Slippage=3 ","Lot=0.2 ","MM_MaxRisk=0 ","MinPreSignalCandleSize=10 ","TR_TrailingStart=0 ","TR_TrailingDistance=9 ","TR_TrailingStep=2 ","BE_Start=0 ","BE_Level=1"]
[null,null,1.2,null,null,null,null,null,null,{"$f":"K16/$Z$5*12","v":{"$error":"#DIV/0!"}},{"$f":"Q16/$G$3","v":{"$error":"#DIV/0!"}},9.3490000000000004E-2,9.3490000000000004E-2,null,null,29,440.47,29,1.56,15.19,467.45,9.3399999999999997E-2,0.54,"StopLoss=80 ","TakeProfit=190 ","PartClose_Targets_1=45 ","PartClose_Percents_1=20 ","PartClose_Targets_2=25 ","PartClose_Percents_2=20 ","ExceedPercent=50 ","MinSignalCandleSize=10 ","SignalBarStopLossDistance=6 ","Stch_KPeriod=5 ","Stch_DPeriod=6 ","Stch_Slowing=6 ","Stch_MinMaxLevels=2 ","RSI_Period=11 ","RSI_MinMaxLevels=2","VarOptimTest=0 ","Counter=1 ","Magic=1005 ","Slippage=3 ","Lot=0.2 ","MM_MaxRisk=0 ","MinPreSignalCandleSize=10 ","TR_TrailingStart=0 ","TR_TrailingDistance=9 ","TR_TrailingStep=2 ","BE_Start=0 ","BE_Level=1"]
[null,null,1.2,null,null,null,null,null,null,{"$f":"K17/$Z$5*12","v":{"$error":"#DIV/0!"}},{"$f":"Q17/$G$3","v":{"$error":"#DIV/0!"}},9.3908000000000005E-2,9.3908000000000005E-2,null,null,30,619.86,31,2,20,469.54,9.3799999999999994E-2,0.55000000000000004,"StopLoss=90 ","TakeProfit=200 ","PartClose_Targets_1=20 ","PartClose_Percents_1=40 ","PartClose_Targets_2=55 ","PartClose_Percents_2=20 ","ExceedPercent=30 ","MinSignalCandleSize=15 ","SignalBarStopLossDistance=3 ","Stch_KPeriod=9 ","Stch_DPeriod=4 ","Stch_Slowing=2 ","Stch_MinMaxLevels=2 ","RSI_Period=11 ","RSI_MinMaxLevels=2","VarOptimTest=0 ","Counter=1 ","Magic=1005 ","Slippage=3 ","Lot=0.2 ","MM_MaxRisk=0 ","MinPreSignalCandleSize=10 ","TR_TrailingStart=0 ","TR_TrailingDistance=9 ","TR_TrailingStep=2 ","BE_Start=0 ","BE_Level=1"]
[null,null,1.2,null,null,null,null,null,null,{"$f":"K18/$Z$5*12","v":{"$error":"#DIV/0!"}},{"$f":"Q18/$G$3","v":{"$error":"#DIV/0!"}},9.4084000000000001E-2,9.4084000000000001E-2,null,null,31,283.89,26,1.4,10.92,470.42,8.9099999999999999E-2,0.53,"StopLoss=80 ","TakeProfit=200 ","PartClose_Targets_1=60 ","PartClose_Percents_1=20 ","PartClose_Targets_2=50 ","PartClose_Percents_2=50 ","ExceedPercent=30 ","MinSignalCandleSize=10 ","SignalBarStopLossDistance=6 ","Stch_KPeriod=7 ","Stch_DPeriod=6 ","Stch_Slowing=4 ","Stch_MinMaxLevels=2 ","RSI_Period=3 ","RSI_MinMaxLevels=2","VarOptimTest=0 ","Counter=1 ","Magic=1005 ","Slippage=3 ","Lot=0.2 ","MM_MaxRisk=0 ","MinPreSignalCandleSize=10 ","TR_TrailingStart=0 ","TR_TrailingDistance=9 ","TR_TrailingStep=2 ","BE_Start=0 ","BE_Level=1"]
[null,null,1.2,null,null,null,null,null,null,{"$f":"K19/$Z$5*12","v":{"$error":"#DIV/0!"}},{"$f":"Q19/$G$3","v":{"$error":"#DIV/0!"}},9.5904000000000003E-2,9.5904000000000003E-2,null,null,32,421.92,25,1.6,16.88,479.52,9.5799999999999996E-2,0.53,"StopLoss=90 ","TakeProfit=170 ","PartClose_Targets_1=70 ","PartClose_Percents_1=50 ","PartClose_Targets_2=70 ","PartClose_Percents_2=30 ","ExceedPercent=30 ","MinSignalCandleSize=15 ","SignalBarStopLossDistance=6 ","Stch_KPeriod=7 ","Stch_DPeriod=4 ","Stch_Slowing=6 ","Stch_MinMaxLevels=2 ","RSI_Period=11 ","RSI_MinMaxLevels=2","VarOptimTest=0 ","Counter=1 ","Magic=1005 ","Slippage=3 ","Lot=0.2 ","MM_MaxRisk=0 ","MinPreSignalCandleSize=10 ","TR_TrailingStart=0 ","TR_TrailingDistance=9 ","TR_TrailingStep=2 ","BE_Start=0 ","BE_Level=1"]
[null,null,1.2,null,null,null,null,null,null,{"$f":"K20/$Z$5*12","v":{"$error":"#DIV/0!"}},{"$f":"Q20/$G$3","v":{"$error":"#DIV/0!"}},9.6023999999999998E-2,9.6023999999999998E-2,null,null,33,587.45000000000005,23,1.94,25.54,480.12,9.5899999999999999E-2,0.64,"StopLoss=70 ","TakeProfit=190 ","PartClose_Targets_1=65 ","PartClose_Percents_1=20 ","PartClose_Targets_2=50 ","PartClose_Percents_2=30 ","ExceedPercent=30 ","MinSignalCandleSize=15 ","SignalBarStopLossDistance=3 ","Stch_KPeriod=5 ","Stch_DPeriod=2 ","Stch_Slowing=6 ","Stch_MinMaxLevels=2 ","RSI_Period=11 ","RSI_MinMaxLevels=2","VarOptimTest=0 ","Counter=1 ","Magic=1005 ","Slippage=3 ","Lot=0.2 ","MM_MaxRisk=0 ","MinPreSignalCandleSize=10 ","TR_TrailingStart=0 ","TR_TrailingDistance=9 ","TR_TrailingStep=2 ","BE_Start=0 ","BE_Level=1"]
[null,null,1.2,null,null,null,null,null,null,{"$f":"K21/$Z$5*12","v":{"$error":"#DIV/0!"}},{"$f":"Q21/$G$3","v":{"$error":"#DIV/0!"}},9.6075999999999995E-2,9.6075999999999995E-2,null,null,34,302.95999999999998,21,1.51,14.43,480.38,9.6000000000000002E-2,0.57999999999999996,"StopLoss=70 ","TakeProfit=180 ","PartClose_Targets_1=55 ","PartClose_Percents_1=20 ","PartClose_Targets_2=45 ","PartClose_Percents_2=20 ","ExceedPercent=30 ","MinSignalCandleSize=10 ","SignalBarStopLossDistance=3 ","Stch_KPeriod=5 ","Stch_DPeriod=6 ","Stch_Slowing=8 ","Stch_MinMaxLevels=2 ","RSI_Period=3 ","RSI_MinMaxLevels=2","VarOptimTest=0 ","Counter=1 ","Magic=1005 ","Slippage=3 ","Lot=0.2 ","MM_MaxRisk=0 ","MinPreSignalCandleSize=10 ","TR_TrailingStart=0 ","TR_TrailingDistance=9 ","TR_TrailingStep=2 ","BE_Start=0 ","BE_Level=1"]
[null,null,1.2,null,null,null,null,null,null,{"$f":"K22/$Z$5*12","v":{"$error":"#DIV/0!"}},{"$f":"Q22/$G$3","v":{"$error":"#DIV/0!"}},9.6972000000000003E-2,9.6972000000000003E-2,null,null,35,345.41,22,1.5,15.7,484.86,9.69E-2,0.41,"StopLoss=80 ","TakeProfit=180 ","PartClose_Targets_1=65 ","PartClose_Percents_1=50 ","PartClose_Targets_2=60 ","PartClose_Percents_2=50 ","ExceedPercent=50 ","MinSignalCandleSize=15 ","SignalBarStopLossDistance=0 ","Stch_KPeriod=5 ","Stch_DPeriod=6 ","Stch_Slowing=6 ","Stch_MinMaxLevels=3 ","RSI_Period=7 ","RSI_MinMaxLevels=2","VarOptimTest=0 ","Counter=1 ","Magic=1005 ","Slippage=3 ","Lot=0.2 ","MM_MaxRisk=0 ","MinPreSignalCandleSize=10 ","TR_TrailingStart=0 ","TR_TrailingDistance=9 ","TR_TrailingStep=2 ","BE_Start=0 ","BE_Level=1"]
[null,null,1.2,null,null,null,null,null,null,{"$f":"K23/$Z$5*12","v":{"$error":"#DIV/0!"}},{"$f":"Q23/$G$3","v":{"$error":"#DIV/0!"}},9.7988000000000006E-2,9.7988000000000006E-2,null,null,36,669.01,23,2.2999999999999998,29.09,489.94,9.7000000000000003E-2,0.6,"StopLoss=90 ","TakeProfit=200 ","PartClose_Targets_1=55 ","PartClose_Percents_1=30 ","PartClose_Targets_2=25 ","PartClose_Percents_2=30 ","ExceedPercent=30 ","MinSignalCandleSize=15 ","SignalBarStopLossDistance=6 ","Stch_KPeriod=9 ","Stch_DPeriod=4 ","Stch_Slowing=4 ","Stch_MinMaxLevels=2 ","RSI_Period=15 ","RSI_MinMaxLevels=2","VarOptimTest=0 ","Counter=1 ","Magic=1005 ","Slippage=3 ","Lot=0.2 ","MM_MaxRisk=0 ","MinPreSignalCandleSize=10 ","TR_TrailingStart=0 ","TR_TrailingDistance=9 ","TR_TrailingStep=2 ","BE_Start=0 ","BE_Level=1"]
[null,null,1.2,null,null,null,null,null,null,{"$f":"K24/$Z$5*12","v":{"$error":"#DIV/0!"}},{"$f":"Q24/$G$3","v":{"$error":"#DIV/0!"}},9.9101999999999996E-2,9.9101999999999996E-2,null,null,37,328.5,26,1.4,12.63,495.51,9.9000000000000005E-2,0.53,"StopLoss=90 ","TakeProfit=190 ","PartClose_Targets_1=60 ","PartClose_Percents_1=20 ","PartClose_Targets_2=45 ","PartClose_Percents_2=40 ","ExceedPercent=50 ","MinSignalCandleSize=10 ","SignalBarStopLossDistance=6 ","Stch_KPeriod=5 ","Stch_DPeriod=2 ","Stch_Slowing=8 ","Stch_MinMaxLevels=2 ","RSI_Period=11 ","RSI_MinMaxLevels=2","VarOptimTest=0 ","Counter=1 ","Magic=1005 ","Slippage=3 ","Lot=0.2 ","MM_MaxRisk=0 ","MinPreSignalCandleSize=10 ","TR_TrailingStart=0 ","TR_TrailingDistance=9 ","TR_TrailingStep=2 ","BE_Start=0 ","BE_Level=1"]
[null,null,1.2,null,null,null,null,null,null,{"$f":"K25/$Z$5*12","v":{"$error":"#DIV/0!"}},{"$f":"Q25/$G$3","v":{"$error":"#DIV/0!"}},9.962E-2,9.962E-2,null,null,38,496.43,46,1.49,10.79,498.1,9.9500000000000005E-2,0.46,"StopLoss=70 ","TakeProfit=130 ","PartClose_Targets_1=30 ","PartClose_Percents_1=20 ","PartClose_Targets_2=50 ","PartClose_Percents_2=30 ","ExceedPercent=30 ","MinSignalCandleSize=10 ","SignalBarStopLossDistance=3 ","Stch_KPeriod=11 ","Stch_DPeriod=2 ","Stch_Slowing=6 ","Stch_MinMaxLevels=2 ","RSI_Period=11 ","RSI_MinMaxLevels=2","VarOptimTest=0 ","Counter=1 ","Magic=1005 ","Slippage=3 ","Lot=0.2 ","MM_MaxRisk=0 ","MinPreSignalCandleSize=10 ","TR_TrailingStart=0 ","TR_TrailingDistance=9 ","TR_TrailingStep=2 ","BE_Start=0 ","BE_Level=1"]
[null,null,1.2,null,null,null,null,null,null,{"$f":"K26/$Z$5*12","v":{"$error":"#DIV/0!"}},{"$f":"Q26/$G$3","v":{"$error":"#DIV/0!"}},9.9902000000000005E-2,9.9902000000000005E-2,null,null,39,372.24,26,1.46,14.32,499.51,9.98E-2,0.55000000000000004,"StopLoss=60 ","TakeProfit=180 ","PartClose_Targets_1=50 ","PartClose_Percents_1=20 ","PartClose_Targets_2=70 ","PartClose_Percents_2=20 ","ExceedPercent=50 ","MinSignalCandleSize=10 ","SignalBarStopLossDistance=6 ","Stch_KPeriod=13 ","Stch_DPeriod=4 ","Stch_Slowing=4 ","Stch_MinMaxLevels=2 ","RSI_Period=11 ","RSI_MinMaxLevels=2","VarOptimTest=0 ","Counter=1 ","Magic=1005 ","Slippage=3 ","Lot=0.2 ","MM_MaxRisk=0 ","MinPreSignalCandleSize=10 ","TR_TrailingStart=0 ","TR_TrailingDistance=9 ","TR_TrailingStep=2 ","BE_Start=0 ","BE_Level=1"]
[null,null,1.2,null,null,null,null,null,null,{"$f":"K27/$Z$5*12","v":{"$error":"#DIV/0!"}},{"$f":"Q27/$G$3","v":{"$error":"#DIV/0!"}},0.10002799999999999,0.10002799999999999,null,null,41,202.29,23,1.41,8.8000000000000007,500.14,9.9000000000000005E-2,0.37,"StopLoss=40 ","TakeProfit=100 ","PartClose_Targets_1=25 ","PartClose_Percents_1=20 ","PartClose_Targets_2=45 ","PartClose_Percents_2=20 ","ExceedPercent=30 ","MinSignalCandleSize=15 ","SignalBarStopLossDistance=3 ","Stch_KPeriod=11 ","Stch_DPeriod=2 ","Stch_Slowing=6 ","Stch_MinMaxLevels=2 ","RSI_Period=15 ","RSI_MinMaxLevels=2","VarOptimTest=0 ","Counter=1 ","Magic=1005 ","Slippage=3 ","Lot=0.2 ","MM_MaxRisk=0 ","MinPreSignalCandleSize=10 ","TR_TrailingStart=0 ","TR_TrailingDistance=9 ","TR_TrailingStep=2 ","BE_Start=0 ","BE_Level=1"]
[null,null,1.2,null,null,null,null,null,null,{"$f":"K28/$Z$5*12","v":{"$error":"#DIV/0!"}},{"$f":"Q28/$G$3","v":{"$error":"#DIV/0!"}},0.10002799999999999,0.10002799999999999,null,null,40,801.34,46,1.78,17.420000000000002,500.14,9.9900000000000003E-2,0.55000000000000004,"StopLoss=70 ","TakeProfit=170 ","PartClose_Targets_1=25 ","PartClose_Percents_1=20 ","PartClose_Targets_2=35 ","PartClose_Percents_2=20 ","ExceedPercent=30 ","MinSignalCandleSize=10 ","SignalBarStopLossDistance=3 ","Stch_KPeriod=7 ","Stch_DPeriod=6 ","Stch_Slowing=2 ","Stch_MinMaxLevels=2 ","RSI_Period=11 ","RSI_MinMaxLevels=2","VarOptimTest=0 ","Counter=1 ","Magic=1005 ","Slippage=3 ","Lot=0.2 ","MM_MaxRisk=0 ","MinPreSignalCandleSize=10 ","TR_TrailingStart=0 ","TR_TrailingDistance=9 ","TR_TrailingStep=2 ","BE_Start=0 ","BE_Level=1"]
[null,null,1.2,null,null,null,null,null,null,{"$f":"K29/$Z$5*12","v":{"$error":"#DIV/0!"}},{"$f":"Q29/$G$3","v":{"$error":"#DIV/0!"}},0.10155599999999999,0.10155599999999999,null,null,42,1072.32,64,1.93,16.75,507.78,0.1003,0.39,"StopLoss=80 ","TakeProfit=150 ","PartClose_Targets_1=35 ","PartClose_Percents_1=40 ","PartClose_Targets_2=40 ","PartClose_Percents_2=50 ","ExceedPercent=50 ","MinSignalCandleSize=10 ","SignalBarStopLossDistance=0 ","Stch_KPeriod=5 ","Stch_DPeriod=6 ","Stch_Slowing=8 ","Stch_MinMaxLevels=3 ","RSI_Period=3 ","RSI_MinMaxLevels=3","VarOptimTest=0 ","Counter=1 ","Magic=1005 ","Slippage=3 ","Lot=0.2 ","MM_MaxRisk=0 ","MinPreSignalCandleSize=10 ","TR_TrailingStart=0 ","TR_TrailingDistance=9 ","TR_TrailingStep=2 ","BE_Start=0 ","BE_Level=1"]
[null,null,1.2,null,null,null,null,null,null,{"$f":"K30/$Z$5*12","v":{"$error":"#DIV/0!"}},{"$f":"Q30/$G$3","v":{"$error":"#DIV/0!"}},0.10191599999999999,0.10191599999999999,null,null,43,566.42999999999995,22,1.86,25.75,509.58,0.1011,0.63,"StopLoss=50 ","TakeProfit=190 ","PartClose_Targets_1=70 ","PartClose_Percents_1=20 ","PartClose_Targets_2=70 ","PartClose_Percents_2=40 ","ExceedPercent=30 ","MinSignalCandleSize=10 ","SignalBarStopLossDistance=3 ","Stch_KPeriod=7 ","Stch_DPeriod=2 ","Stch_Slowing=2 ","Stch_MinMaxLevels=2 ","RSI_Period=15 ","RSI_MinMaxLevels=2","VarOptimTest=0 ","Counter=1 ","Magic=1005 ","Slippage=3 ","Lot=0.2 ","MM_MaxRisk=0 ","MinPreSignalCandleSize=10 ","TR_TrailingStart=0 ","TR_TrailingDistance=9 ","TR_TrailingStep=2 ","BE_Start=0 ","BE_Level=1"]
[null,null,1.2,null,null,null,null,null,null,{"$f":"K31/$Z$5*12","v":{"$error":"#DIV/0!"}},{"$f":"Q31/$G$3","v":{"$error":"#DIV/0!"}},0.104074,0.104074,null,null,44,558.36,29,1.58,19.25,520.37,9.7000000000000003E-2,0.37,"StopLoss=90 ","TakeProfit=170 ","PartClose_Targets_1=70 ","PartClose_Percents_1=50 ","PartClose_Targets_2=65 ","PartClose_Percents_2=40 ","ExceedPercent=30 ","MinSignalCandleSize=10 ","SignalBarStopLossDistance=0 ","Stch_KPeriod=11 ","Stch_DPeriod=6 ","Stch_Slowing=8 ","Stch_MinMaxLevels=2 ","RSI_Period=3 ","RSI_MinMaxLevels=2","VarOptimTest=0 ","Counter=1 ","Magic=1005 ","Slippage=3 ","Lot=0.2 ","MM_MaxRisk=0 ","MinPreSignalCandleSize=10 ","TR_TrailingStart=0 ","TR_TrailingDistance=9 ","TR_TrailingStep=2 ","BE_Start=0 ","BE_Level=1"]
[null,null,1.2,null,null,null,null,null,null,{"$f":"K32/$Z$5*12","v":{"$error":"#DIV/0!"}},{"$f":"Q32/$G$3","v":{"$error":"#DIV/0!"}},0.10691600000000001,0.10691600000000001,null,null,45,633.14,43,1.59,14.72,534.58000000000004,0.10680000000000001,0.53,"StopLoss=40 ","TakeProfit=160 ","PartClose_Targets_1=45 ","PartClose_Percents_1=20 ","PartClose_Targets_2=20 ","PartClose_Percents_2=30 ","ExceedPercent=30 ","MinSignalCandleSize=10 ","SignalBarStopLossDistance=3 ","Stch_KPeriod=5 ","Stch_DPeriod=2 ","Stch_Slowing=2 ","Stch_MinMaxLevels=2 ","RSI_Period=11 ","RSI_MinMaxLevels=2","VarOptimTest=0 ","Counter=1 ","Magic=1005 ","Slippage=3 ","Lot=0.2 ","MM_MaxRisk=0 ","MinPreSignalCandleSize=10 ","TR_TrailingStart=0 ","TR_TrailingDistance=9 ","TR_TrailingStep=2 ","BE_Start=0 ","BE_Level=1"]
[null,null,1.2,null,null,null,null,null,null,{"$f":"K33/$Z$5*12","v":{"$error":"#DIV/0!"}},{"$f":"Q33/$G$3","v":{"$error":"#DIV/0!"}},0.10736800000000001,0.10736800000000001,null,null,47,757.41,28,1.98,27.05,536.84,0.1072,0.6,"StopLoss=70 ","TakeProfit=190 ","PartClose_Targets_1=65 ","PartClose_Percents_1=20 ","PartClose_Targets_2=50 ","PartClose_Percents_2=30 ","ExceedPercent=30 ","MinSignalCandleSize=15 ","SignalBarStopLossDistance=6 ","Stch_KPeriod=13 ","Stch_DPeriod=4 ","Stch_Slowing=6 ","Stch_MinMaxLevels=2 ","RSI_Period=11 ","RSI_MinMaxLevels=2","VarOptimTest=0 ","Counter=1 ","Magic=1005 ","Slippage=3 ","Lot=0.2 ","MM_MaxRisk=0 ","MinPreSignalCandleSize=10 ","TR_TrailingStart=0 ","TR_TrailingDistance=9 ","TR_TrailingStep=2 ","BE_Start=0 ","BE_Level=1"]
[null,null,1.2,null,null,null,null,null,null,{"$f":"K34/$Z$5*12","v":{"$error":"#DIV/0!"}},{"$f":"Q34/$G$3","v":{"$error":"#DIV/0!"}},0.10736800000000001,0.10736800000000001,null,null,46,808.72,28,2.0499999999999998,28.88,536.84,0.1072,0.62,"StopLoss=90 ","TakeProfit=190 ","PartClose_Targets_1=65 ","PartClose_Percents_1=20 ","PartClose_Targets_2=35 ","PartClose_Percents_2=20 ","ExceedPercent=30 ","MinSignalCandleSize=15 ","SignalBarStopLossDistance=6 ","Stch_KPeriod=13 ","Stch_DPeriod=4 ","Stch_Slowing=6 ","Stch_MinMaxLevels=2 ","RSI_Period=11 ","RSI_MinMaxLevels=2","VarOptimTest=0 ","Counter=1 ","Magic=1005 ","Slippage=3 ","Lot=0.2 ","MM_MaxRisk=0 ","MinPreSignalCandleSize=10 ","TR_TrailingStart=0 ","TR_TrailingDistance=9 ","TR_TrailingStep=2 ","BE_Start=0 ","BE_Level=1"]
[null,null,1.2,null,null,null,null,null,null,{"$f":"K35/$Z$5*12","v":{"$error":"#DIV/0!"}},{"$f":"Q35/$G$3","v":{"$error":"#DIV/0!"}},0.107776,0.107776,null,null,49,589.02,41,1.48,14.37,538.88,0.1077,0.54,"StopLoss=80 ","TakeProfit=200 ","PartClose_Targets_1=60 ","PartClose_Percents_1=20 ","PartClose_Targets_2=50 ","PartClose_Percents_2=50 ","ExceedPercent=30 ","MinSignalCandleSize=10 ","SignalBarStopLossDistance=6 ","Stch_KPeriod=9 ","Stch_DPeriod=6 ","Stch_Slowing=4 ","Stch_MinMaxLevels=2 ","RSI_Period=11 ","RSI_MinMaxLevels=2","VarOptimTest=0 ","Counter=1 ","Magic=1005 ","Slippage=3 ","Lot=0.2 ","MM_MaxRisk=0 ","MinPreSignalCandleSize=10 ","TR_TrailingStart=0 ","TR_TrailingDistance=9 ","TR_TrailingStep=2 ","BE_Start=0 ","BE_Level=1"]
[null,null,1.2,null,null,null,null,null,null,{"$f":"K36/$Z$5*12","v":{"$error":"#DIV/0!"}},{"$f":"Q36/$G$3","v":{"$error":"#DIV/0!"}},0.107776,0.107776,null,null,48,785.32,28,2.02,28.05,538.88,0.1077,0.61,"StopLoss=90 ","TakeProfit=190 ","PartClose_Targets_1=60 ","PartClose_Percents_1=20 ","PartClose_Targets_2=35 ","PartClose_Percents_2=20 ","ExceedPercent=30 ","MinSignalCandleSize=15 ","SignalBarStopLossDistance=6 ","Stch_KPeriod=13 ","Stch_DPeriod=4 ","Stch_Slowing=6 ","Stch_MinMaxLevels=2 ","RSI_Period=11 ","RSI_MinMaxLevels=2","VarOptimTest=0 ","Counter=1 ","Magic=1005 ","Slippage=3 ","Lot=0.2 ","MM_MaxRisk=0 ","MinPreSignalCandleSize=10 ","TR_TrailingStart=0 ","TR_TrailingDistance=9 ","TR_TrailingStep=2 ","BE_Start=0 ","BE_Level=1"]
[null,null,1.2,null,null,null,null,null,null,{"$f":"K37/$Z$5*12","v":{"$error":"#DIV/0!"}},{"$f":"Q37/$G$3","v":{"$error":"#DIV/0!"}},0.10871600000000001,0.10871600000000001,null,null,56,486.49,40,1.46,12.16,543.58000000000004,0.1086,0.51,"StopLoss=90 ","TakeProfit=170 ","PartClose_Targets_1=55 ","PartClose_Percents_1=50 ","PartClose_Targets_2=70 ","PartClose_Percents_2=40 ","ExceedPercent=30 ","MinSignalCandleSize=10 ","SignalBarStopLossDistance=3 ","Stch_KPeriod=5 ","Stch_DPeriod=2 ","Stch_Slowing=2 ","Stch_MinMaxLevels=2 ","RSI_Period=11 ","RSI_MinMaxLevels=2","VarOptimTest=0 ","Counter=1 ","Magic=1005 ","Slippage=3 ","Lot=0.2 ","MM_MaxRisk=0 ","MinPreSignalCandleSize=10 ","TR_TrailingStart=0 ","TR_TrailingDistance=9 ","TR_TrailingStep=2 ","BE_Start=0 ","BE_Level=1"]
[null,null,1.2,null,null,null,null,null,null,{"$f":"K38/$Z$5*12","v":{"$error":"#DIV/0!"}},{"$f":"Q38/$G$3","v":{"$error":"#DIV/0!"}},0.10871600000000001,0.10871600000000001,null,null,55,725.95,27,1.99,26.89,543.58000000000004,0.1086,0.62,"StopLoss=60 ","TakeProfit=180 ","PartClose_Targets_1=50 ","PartClose_Percents_1=20 ","PartClose_Targets_2=55 ","PartClose_Percents_2=20 ","ExceedPercent=30 ","MinSignalCandleSize=15 ","SignalBarStopLossDistance=3 ","Stch_KPeriod=9 ","Stch_DPeriod=4 ","Stch_Slowing=2 ","Stch_MinMaxLevels=2 ","RSI_Period=11 ","RSI_MinMaxLevels=2","VarOptimTest=0 ","Counter=1 ","Magic=1005 ","Slippage=3 ","Lot=0.2 ","MM_MaxRisk=0 ","MinPreSignalCandleSize=10 ","TR_TrailingStart=0 ","TR_TrailingDistance=9 ","TR_TrailingStep=2 ","BE_Start=0 ","BE_Level=1"]
[null,null,1.2,null,null,null,null,null,null,{"$f":"K39/$Z$5*12","v":{"$error":"#DIV/0!"}},{"$f":"Q39/$G$3","v":{"$error":"#DIV/0!"}},0.10871600000000001,0.10871600000000001,null,null,54,779.19,40,1.71,19.48,543.58000000000004,0.1086,0.6,"StopLoss=70 ","TakeProfit=180 ","PartClose_Targets_1=60 ","PartClose_Percents_1=30 ","PartClose_Targets_2=70 ","PartClose_Percents_2=40 ","ExceedPercent=30 ","MinSignalCandleSize=10 ","SignalBarStopLossDistance=3 ","Stch_KPeriod=5 ","Stch_DPeriod=2 ","Stch_Slowing=2 ","Stch_MinMaxLevels=2 ","RSI_Period=11 ","RSI_MinMaxLevels=2","VarOptimTest=0 ","Counter=1 ","Magic=1005 ","Slippage=3 ","Lot=0.2 ","MM_MaxRisk=0 ","MinPreSignalCandleSize=10 ","TR_TrailingStart=0 ","TR_TrailingDistance=9 ","TR_TrailingStep=2 ","BE_Start=0 ","BE_Level=1"]
[null,null,1.2,null,null,null,null,null,null,{"$f":"K40/$Z$5*12","v":{"$error":"#DIV/0!"}},{"$f":"Q40/$G$3","v":{"$error":"#DIV/0!"}},0.10871600000000001,0.10871600000000001,null,null,53,824.78,27,2.13,30.55,543.58000000000004,0.1086,0.66,"StopLoss=90 ","TakeProfit=190 ","PartClose_Targets_1=60 ","PartClose_Percents_1=20 ","PartClose_Targets_2=50 ","PartClose_Percents_2=20 ","ExceedPercent=30 ","MinSignalCandleSize=15 ","SignalBarStopLossDistance=3 ","Stch_KPeriod=13 ","Stch_DPeriod=2 ","Stch_Slowing=2 ","Stch_MinMaxLevels=2 ","RSI_Period=11 ","RSI_MinMaxLevels=2","VarOptimTest=0 ","Counter=1 ","Magic=1005 ","Slippage=3 ","Lot=0.2 ","MM_MaxRisk=0 ","MinPreSignalCandleSize=10 ","TR_TrailingStart=0 ","TR_TrailingDistance=9 ","TR_TrailingStep=2 ","BE_Start=0 ","BE_Level=1"]
[null,null,1.2,null,null,null,null,null,null,{"$f":"K41/$Z$5*12","v":{"$error":"#DIV/0!"}},{"$f":"Q41/$G$3","v":{"$error":"#DIV/0!"}},0.10871600000000001,0.10871600000000001,null,null,52,851.44,27,2.1800000000000002,31.53,543.58000000000004,0.1086,0.68,"StopLoss=90 ","TakeProfit=200 ","PartClose_Targets_1=70 ","PartClose_Percents_1=30 ","PartClose_Targets_2=55 ","PartClose_Percents_2=20 ","ExceedPercent=30 ","MinSignalCandleSize=15 ","SignalBarStopLossDistance=3 ","Stch_KPeriod=9 ","Stch_DPeriod=4 ","Stch_Slowing=2 ","Stch_MinMaxLevels=2 ","RSI_Period=11 ","RSI_MinMaxLevels=2","VarOptimTest=0 ","Counter=1 ","Magic=1005 ","Slippage=3 ","Lot=0.2 ","MM_MaxRisk=0 ","MinPreSignalCandleSize=10 ","TR_TrailingStart=0 ","TR_TrailingDistance=9 ","TR_TrailingStep=2 ","BE_Start=0 ","BE_Level=1"]
[null,null,1.2,null,null,null,null,null,null,{"$f":"K42/$Z$5*12","v":{"$error":"#DIV/0!"}},{"$f":"Q42/$G$3","v":{"$error":"#DIV/0!"}},0.10871600000000001,0.10871600000000001,null,null,51,872.82,27,2.19,32.33,543.58000000000004,0.1086,0.68,"StopLoss=60 ","TakeProfit=200 ","PartClose_Targets_1=70 ","PartClose_Percents_1=20 ","PartClose_Targets_2=70 ","PartClose_Percents_2=40 ","ExceedPercent=30 ","MinSignalCandleSize=15 ","SignalBarStopLossDistance=3 ","Stch_KPeriod=9 ","Stch_DPeriod=2 ","Stch_Slowing=6 ","Stch_MinMaxLevels=2 ","RSI_Period=11 ","RSI_MinMaxLevels=2","VarOptimTest=0 ","Counter=1 ","Magic=1005 ","Slippage=3 ","Lot=0.2 ","MM_MaxRisk=0 ","MinPreSignalCandleSize=10 ","TR_TrailingStart=0 ","TR_TrailingDistance=9 ","TR_TrailingStep=2 ","BE_Start=0 ","BE_Level=1"]
[null,null,1.2,null,null,null,null,null,null,{"$f":"K43/$Z$5*12","v":{"$error":"#DIV/0!"}},{"$f":"Q43/$G$3","v":{"$error":"#DIV/0!"}},0.10871600000000001,0.10871600000000001,null,null,50,1055.01,40,1.96,26.38,543.58000000000004,0.1086,0.69,"StopLoss=50 ","TakeProfit=190 ","PartClose_Targets_1=70 ","PartClose_Percents_1=20 ","PartClose_Targets_2=70 ","PartClose_Percents_2=40 ","ExceedPercent=30 ","MinSignalCandleSize=10 ","SignalBarStopLossDistance=3 ","Stch_KPeriod=5 ","Stch_DPeriod=2 ","Stch_Slowing=2 ","Stch_MinMaxLevels=2 ","RSI_Period=11 ","RSI_MinMaxLevels=2","VarOptimTest=0 ","Counter=1 ","Magic=1005 ","Slippage=3 ","Lot=0.2 ","MM_MaxRisk=0 ","MinPreSignalCandleSize=10 ","TR_TrailingStart=0 ","TR_TrailingDistance=9 ","TR_TrailingStep=2 ","BE_Start=0 ","BE_Level=1"]
[null,null,1.2,null,null,null,null,null,null,{"$f":"K44/$Z$5*12","v":{"$error":"#DIV/0!"}},{"$f":"Q44/$G$3","v":{"$error":"#DIV/0!"}},0.10941400000000001,0.10941400000000001,null,null,57,438.13,26,1.53,16.850000000000001,547.07000000000005,0.10929999999999999,0.56999999999999995,"StopLoss=90 ","TakeProfit=200 ","PartClose_Targets_1=70 ","PartClose_Percents_1=30 ","PartClose_Targets_2=55 ","PartClose_Percents_2=20 ","ExceedPercent=30 ","MinSignalCandleSize=15 ","SignalBarStopLossDistance=3 ","Stch_KPeriod=9 ","Stch_DPeriod=4 ","Stch_Slowing=2 ","Stch_MinMaxLevels=2 ","RSI_Period=7 ","RSI_MinMaxLevels=2","VarOptimTest=0 ","Counter=1 ","Magic=1005 ","Slippage=3 ","Lot=0.2 ","MM_MaxRisk=0 ","MinPreSignalCandleSize=10 ","TR_TrailingStart=0 ","TR_TrailingDistance=9 ","TR_TrailingStep=2 ","BE_Start=0 ","BE_Level=1"]
[null,null,1.2,null,null,null,null,null,null,{"$f":"K45/$Z$5*12","v":{"$error":"#DIV/0!"}},{"$f":"Q45/$G$3","v":{"$error":"#DIV/0!"}},0.11030999999999999,0.11030999999999999,null,null,58,362.35,24,1.51,15.1,551.54999999999995,0.11020000000000001,0.38,"StopLoss=70 ","TakeProfit=190 ","PartClose_Targets_1=65 ","PartClose_Percents_1=30 ","PartClose_Targets_2=20 ","PartClose_Percents_2=30 ","ExceedPercent=50 ","MinSignalCandleSize=15 ","SignalBarStopLossDistance=0 ","Stch_KPeriod=9 ","Stch_DPeriod=4 ","Stch_Slowing=8 ","Stch_MinMaxLevels=2 ","RSI_Period=7 ","RSI_MinMaxLevels=2","VarOptimTest=0 ","Counter=1 ","Magic=1005 ","Slippage=3 ","Lot=0.2 ","MM_MaxRisk=0 ","MinPreSignalCandleSize=10 ","TR_TrailingStart=0 ","TR_TrailingDistance=9 ","TR_TrailingStep=2 ","BE_Start=0 ","BE_Level=1"]
[null,null,1.2,null,null,null,null,null,null,{"$f":"K46/$Z$5*12","v":{"$error":"#DIV/0!"}},{"$f":"Q46/$G$3","v":{"$error":"#DIV/0!"}},0.111456,0.111456,null,null,59,586.35,24,1.79,24.43,557.28,0.1103,0.62,"StopLoss=40 ","TakeProfit=200 ","PartClose_Targets_1=60 ","PartClose_Percents_1=20 ","PartClose_Targets_2=70 ","PartClose_Percents_2=20 ","ExceedPercent=30 ","MinSignalCandleSize=10 ","SignalBarStopLossDistance=6 ","Stch_KPeriod=13 ","Stch_DPeriod=2 ","Stch_Slowing=2 ","Stch_MinMaxLevels=2 ","RSI_Period=15 ","RSI_MinMaxLevels=2","VarOptimTest=0 ","Counter=1 ","Magic=1005 ","Slippage=3 ","Lot=0.2 ","MM_MaxRisk=0 ","MinPreSignalCandleSize=10 ","TR_TrailingStart=0 ","TR_TrailingDistance=9 ","TR_TrailingStep=2 ","BE_Start=0 ","BE_Level=1"]
[null,null,1.2,null,null,null,null,null,null,{"$f":"K47/$Z$5*12","v":{"$error":"#DIV/0!"}},{"$f":"Q47/$G$3","v":{"$error":"#DIV/0!"}},0.11422400000000001,0.11422400000000001,null,null,60,355.95,26,1.42,13.69,571.12,0.11409999999999999,0.53,"StopLoss=70 ","TakeProfit=190 ","PartClose_Targets_1=65 ","PartClose_Percents_1=20 ","PartClose_Targets_2=45 ","PartClose_Percents_2=30 ","ExceedPercent=30 ","MinSignalCandleSize=15 ","SignalBarStopLossDistance=3 ","Stch_KPeriod=11 ","Stch_DPeriod=2 ","Stch_Slowing=6 ","Stch_MinMaxLevels=2 ","RSI_Period=7 ","RSI_MinMaxLevels=2","VarOptimTest=0 ","Counter=1 ","Magic=1005 ","Slippage=3 ","Lot=0.2 ","MM_MaxRisk=0 ","MinPreSignalCandleSize=10 ","TR_TrailingStart=0 ","TR_TrailingDistance=9 ","TR_TrailingStep=2 ","BE_Start=0 ","BE_Level=1"]
[null,null,1.2,null,null,null,null,null,null,{"$f":"K48/$Z$5*12","v":{"$error":"#DIV/0!"}},{"$f":"Q48/$G$3","v":{"$error":"#DIV/0!"}},0.11464400000000001,0.11464400000000001,null,null,61,360.11,27,1.4,13.34,573.22,0.1145,0.51,"StopLoss=90 ","TakeProfit=190 ","PartClose_Targets_1=60 ","PartClose_Percents_1=20 ","PartClose_Targets_2=35 ","PartClose_Percents_2=20 ","ExceedPercent=30 ","MinSignalCandleSize=15 ","SignalBarStopLossDistance=6 ","Stch_KPeriod=13 ","Stch_DPeriod=4 ","Stch_Slowing=6 ","Stch_MinMaxLevels=2 ","RSI_Period=7 ","RSI_MinMaxLevels=2","VarOptimTest=0 ","Counter=1 ","Magic=1005 ","Slippage=3 ","Lot=0.2 ","MM_MaxRisk=0 ","MinPreSignalCandleSize=10 ","TR_TrailingStart=0 ","TR_TrailingDistance=9 ","TR_TrailingStep=2 ","BE_Start=0 ","BE_Level=1"]
[null,null,1.2,null,null,null,null,null,null,{"$f":"K49/$Z$5*12","v":{"$error":"#DIV/0!"}},{"$f":"Q49/$G$3","v":{"$error":"#DIV/0!"}},0.116096,0.116096,null,null,63,934.78,32,1.83,29.21,580.48,9.6699999999999994E-2,0.35,"StopLoss=90 ","TakeProfit=170 ","PartClose_Targets_1=70 ","PartClose_Percents_1=20 ","PartClose_Targets_2=35 ","PartClose_Percents_2=20 ","ExceedPercent=30 ","MinSignalCandleSize=25 ","SignalBarStopLossDistance=0 ","Stch_KPeriod=11 ","Stch_DPeriod=2 ","Stch_Slowing=2 ","Stch_MinMaxLevels=4 ","RSI_Period=3 ","RSI_MinMaxLevels=4","VarOptimTest=0 ","Counter=1 ","Magic=1005 ","Slippage=3 ","Lot=0.2 ","MM_MaxRisk=0 ","MinPreSignalCandleSize=10 ","TR_TrailingStart=0 ","TR_TrailingDistance=9 ","TR_TrailingStep=2 ","BE_Start=0 ","BE_Level=1"]
[null,null,1.2,null,null,null,null,null,null,{"$f":"K50/$Z$5*12","v":{"$error":"#DIV/0!"}},{"$f":"Q50/$G$3","v":{"$error":"#DIV/0!"}},0.116096,0.116096,null,null,62,1082.76,33,1.99,32.81,580.48,9.6199999999999994E-2,0.37,"StopLoss=90 ","TakeProfit=200 ","PartClose_Targets_1=30 ","PartClose_Percents_1=20 ","PartClose_Targets_2=70 ","PartClose_Percents_2=20 ","ExceedPercent=30 ","MinSignalCandleSize=25 ","SignalBarStopLossDistance=0 ","Stch_KPeriod=5 ","Stch_DPeriod=6 ","Stch_Slowing=2 ","Stch_MinMaxLevels=4 ","RSI_Period=3 ","RSI_MinMaxLevels=4","VarOptimTest=0 ","Counter=1 ","Magic=1005 ","Slippage=3 ","Lot=0.2 ","MM_MaxRisk=0 ","MinPreSignalCandleSize=10 ","TR_TrailingStart=0 ","TR_TrailingDistance=9 ","TR_TrailingStep=2 ","BE_Start=0 ","BE_Level=1"]
[null,null,null,1.3,null,null,null,null,null,{"$f":"K51/$Z$5*12","v":{"$error":"#DIV/0!"}},{"$f":"Q51/$G$3","v":{"$error":"#DIV/0!"}},5.0180000000000002E-2,5.0180000000000002E-2,null,null,67,588.52,37,2.2999999999999998,15.91,250.9,4.3700000000000003E-2,0.38,"StopLoss=40 ","TakeProfit=130 ","MinPreSignalCandleSize=10 ","SignalBarStopLossDistance=6 ","Stch_KPeriod=7 ","Stch_DPeriod=3 ","Stch_Slowing=3 ","RSI_Period=7 ","TR_TrailingStart=0 ","TR_TrailingDistance=20 ","TR_TrailingStep=1 ","BE_Start=10 ","BE_Level=5","VarOptimTest=0 ","Counter=1 ","Magic=1006 ","Slippage=3 ","Lot=0.2 ","MM_MaxRisk=0 ","PartClose_Targets_1=0 ","PartClose_Percents_1=0 ","PartClose_Targets_2=0 ","PartClose_Percents_2=0 ","ExceedPercent=30 ","MinSignalCandleSize=10 ","Stch_MinMaxLevels=2 ","RSI_MinMaxLevels=2"]
[null,null,null,1.3,null,null,null,null,null,{"$f":"K52/$Z$5*12","v":{"$error":"#DIV/0!"}},{"$f":"Q52/$G$3","v":{"$error":"#DIV/0!"}},5.7787999999999999E-2,5.7787999999999999E-2,null,null,68,678.62,23,1.74,29.51,288.94,5.3499999999999999E-2,0.76,"StopLoss=45 ","TakeProfit=80 ","MinPreSignalCandleSize=20 ","SignalBarStopLossDistance=6 ","Stch_KPeriod=7 ","Stch_DPeriod=5 ","Stch_Slowing=5 ","RSI_Period=7 ","TR_TrailingStart=70 ","TR_TrailingDistance=85 ","TR_TrailingStep=1 ","BE_Start=70 ","BE_Level=1","VarOptimTest=0 ","Counter=1 ","Magic=1006 ","Slippage=3 ","Lot=0.2 ","MM_MaxRisk=0 ","PartClose_Targets_1=0 ","PartClose_Percents_1=0 ","PartClose_Targets_2=0 ","PartClose_Percents_2=0 ","ExceedPercent=30 ","MinSignalCandleSize=10 ","Stch_MinMaxLevels=2 ","RSI_MinMaxLevels=2"]
[null,null,null,1.3,null,null,null,null,null,{"$f":"K53/$Z$5*12","v":{"$error":"#DIV/0!"}},{"$f":"Q53/$G$3","v":{"$error":"#DIV/0!"}},6.8603999999999998E-2,6.8603999999999998E-2,null,null,69,585.96,24,1.58,24.42,343.02,6.8400000000000002E-2,0.7,"StopLoss=70 ","TakeProfit=80 ","MinPreSignalCandleSize=10 ","SignalBarStopLossDistance=6 ","Stch_KPeriod=5 ","Stch_DPeriod=7 ","Stch_Slowing=3 ","RSI_Period=11 ","TR_TrailingStart=0 ","TR_TrailingDistance=25 ","TR_TrailingStep=1 ","BE_Start=0 ","BE_Level=1","VarOptimTest=0 ","Counter=1 ","Magic=1006 ","Slippage=3 ","Lot=0.2 ","MM_MaxRisk=0 ","PartClose_Targets_1=0 ","PartClose_Percents_1=0 ","PartClose_Targets_2=0 ","PartClose_Percents_2=0 ","ExceedPercent=30 ","MinSignalCandleSize=10 ","Stch_MinMaxLevels=2 ","RSI_MinMaxLevels=2"]
[null,null,null,1.3,null,null,null,null,null,{"$f":"K54/$Z$5*12","v":{"$error":"#DIV/0!"}},{"$f":"Q54/$G$3","v":{"$error":"#DIV/0!"}},7.2939999999999991E-2,7.2939999999999991E-2,null,null,70,1082.82,36,3.39,30.08,364.7,5.7000000000000002E-2,0.57999999999999996,"StopLoss=60 ","TakeProfit=105 ","MinPreSignalCandleSize=10 ","SignalBarStopLossDistance=6 ","Stch_KPeriod=9 ","Stch_DPeriod=7 ","Stch_Slowing=5 ","RSI_Period=7 ","TR_TrailingStart=100 ","TR_TrailingDistance=85 ","TR_TrailingStep=1 ","BE_Start=10 ","BE_Level=5","VarOptimTest=0 ","Counter=1 ","Magic=1006 ","Slippage=3 ","Lot=0.2 ","MM_MaxRisk=0 ","PartClose_Targets_1=0 ","PartClose_Percents_1=0 ","PartClose_Targets_2=0 ","PartClose_Percents_2=0 ","ExceedPercent=30 ","MinSignalCandleSize=10 ","Stch_MinMaxLevels=2 ","RSI_MinMaxLevels=2"]
[null,null,null,1.3,null,null,null,null,null,{"$f":"K55/$Z$5*12","v":{"$error":"#DIV/0!"}},{"$f":"Q55/$G$3","v":{"$error":"#DIV/0!"}},7.3898000000000005E-2,7.3898000000000005E-2,null,null,71,482.82,24,1.59,20.12,369.49,7.0300000000000001E-2,0.5,"StopLoss=45 ","TakeProfit=130 ","MinPreSignalCandleSize=10 ","SignalBarStopLossDistance=0 ","Stch_KPeriod=5 ","Stch_DPeriod=5 ","Stch_Slowing=3 ","RSI_Period=11 ","TR_TrailingStart=30 ","TR_TrailingDistance=55 ","TR_TrailingStep=1 ","BE_Start=20 ","BE_Level=5","VarOptimTest=0 ","Counter=1 ","Magic=1006 ","Slippage=3 ","Lot=0.2 ","MM_MaxRisk=0 ","PartClose_Targets_1=0 ","PartClose_Percents_1=0 ","PartClose_Targets_2=0 ","PartClose_Percents_2=0 ","ExceedPercent=30 ","MinSignalCandleSize=10 ","Stch_MinMaxLevels=2 ","RSI_MinMaxLevels=2"]
[null,null,null,1.3,null,null,null,null,null,{"$f":"K56/$Z$5*12","v":{"$error":"#DIV/0!"}},{"$f":"Q56/$G$3","v":{"$error":"#DIV/0!"}},7.4338000000000001E-2,7.4338000000000001E-2,null,null,72,398.12,34,1.43,11.71,371.69,7.2800000000000004E-2,0.49,"StopLoss=55 ","TakeProfit=85 ","MinPreSignalCandleSize=10 ","SignalBarStopLossDistance=6 ","Stch_KPeriod=5 ","Stch_DPeriod=9 ","Stch_Slowing=9 ","RSI_Period=7 ","TR_TrailingStart=0 ","TR_TrailingDistance=20 ","TR_TrailingStep=5 ","BE_Start=20 ","BE_Level=5","VarOptimTest=0 ","Counter=1 ","Magic=1006 ","Slippage=3 ","Lot=0.2 ","MM_MaxRisk=0 ","PartClose_Targets_1=0 ","PartClose_Percents_1=0 ","PartClose_Targets_2=0 ","PartClose_Percents_2=0 ","ExceedPercent=30 ","MinSignalCandleSize=10 ","Stch_MinMaxLevels=2 ","RSI_MinMaxLevels=2"]
[null,null,null,1.3,null,null,null,null,null,{"$f":"K57/$Z$5*12","v":{"$error":"#DIV/0!"}},{"$f":"Q57/$G$3","v":{"$error":"#DIV/0!"}},7.6479999999999992E-2,7.6479999999999992E-2,null,null,74,401.35,24,1.4,16.72,382.4,7.6399999999999996E-2,0.62,"StopLoss=60 ","TakeProfit=110 ","MinPreSignalCandleSize=10 ","SignalBarStopLossDistance=6 ","Stch_KPeriod=7 ","Stch_DPeriod=5 ","Stch_Slowing=7 ","RSI_Period=11 ","TR_TrailingStart=80 ","TR_TrailingDistance=30 ","TR_TrailingStep=5 ","BE_Start=80 ","BE_Level=1","VarOptimTest=0 ","Counter=1 ","Magic=1006 ","Slippage=3 ","Lot=0.2 ","MM_MaxRisk=0 ","PartClose_Targets_1=0 ","PartClose_Percents_1=0 ","PartClose_Targets_2=0 ","PartClose_Percents_2=0 ","ExceedPercent=30 ","MinSignalCandleSize=10 ","Stch_MinMaxLevels=2 ","RSI_MinMaxLevels=2"]
[null,null,null,1.3,null,null,null,null,null,{"$f":"K58/$Z$5*12","v":{"$error":"#DIV/0!"}},{"$f":"Q58/$G$3","v":{"$error":"#DIV/0!"}},7.6479999999999992E-2,7.6479999999999992E-2,null,null,73,421.35,24,1.42,17.559999999999999,382.4,7.6399999999999996E-2,0.63,"StopLoss=65 ","TakeProfit=115 ","MinPreSignalCandleSize=10 ","SignalBarStopLossDistance=6 ","Stch_KPeriod=7 ","Stch_DPeriod=5 ","Stch_Slowing=7 ","RSI_Period=11 ","TR_TrailingStart=80 ","TR_TrailingDistance=30 ","TR_TrailingStep=5 ","BE_Start=80 ","BE_Level=1","VarOptimTest=0 ","Counter=1 ","Magic=1006 ","Slippage=3 ","Lot=0.2 ","MM_MaxRisk=0 ","PartClose_Targets_1=0 ","PartClose_Percents_1=0 ","PartClose_Targets_2=0 ","PartClose_Percents_2=0 ","ExceedPercent=30 ","MinSignalCandleSize=10 ","Stch_MinMaxLevels=2 ","RSI_MinMaxLevels=2"]
[null,null,null,1.3,null,null,null,null,null,{"$f":"K59/$Z$5*12","v":{"$error":"#DIV/0!"}},{"$f":"Q59/$G$3","v":{"$error":"#DIV/0!"}},7.7537999999999996E-2,7.7537999999999996E-2,null,null,75,410.53,37,1.45,11.1,387.69,7.4200000000000002E-2,0.49,"StopLoss=40 ","TakeProfit=130 ","MinPreSignalCandleSize=10 ","SignalBarStopLossDistance=6 ","Stch_KPeriod=5 ","Stch_DPeriod=5 ","Stch_Slowing=3 ","RSI_Period=7 ","TR_TrailingStart=0 ","TR_TrailingDistance=20 ","TR_TrailingStep=1 ","BE_Start=20 ","BE_Level=1","VarOptimTest=0 ","Counter=1 ","Magic=1006 ","Slippage=3 ","Lot=0.2 ","MM_MaxRisk=0 ","PartClose_Targets_1=0 ","PartClose_Percents_1=0 ","PartClose_Targets_2=0 ","PartClose_Percents_2=0 ","ExceedPercent=30 ","MinSignalCandleSize=10 ","Stch_MinMaxLevels=2 ","RSI_MinMaxLevels=2"]
[null,null,null,1.3,null,null,null,null,null,{"$f":"K60/$Z$5*12","v":{"$error":"#DIV/0!"}},{"$f":"Q60/$G$3","v":{"$error":"#DIV/0!"}},7.9313999999999996E-2,7.9313999999999996E-2,null,null,76,433.03,37,1.41,11.7,396.57,7.9200000000000007E-2,0.42,"StopLoss=40 ","TakeProfit=130 ","MinPreSignalCandleSize=10 ","SignalBarStopLossDistance=0 ","Stch_KPeriod=9 ","Stch_DPeriod=3 ","Stch_Slowing=3 ","RSI_Period=7 ","TR_TrailingStart=0 ","TR_TrailingDistance=20 ","TR_TrailingStep=1 ","BE_Start=20 ","BE_Level=5","VarOptimTest=0 ","Counter=1 ","Magic=1006 ","Slippage=3 ","Lot=0.2 ","MM_MaxRisk=0 ","PartClose_Targets_1=0 ","PartClose_Percents_1=0 ","PartClose_Targets_2=0 ","PartClose_Percents_2=0 ","ExceedPercent=30 ","MinSignalCandleSize=10 ","Stch_MinMaxLevels=2 ","RSI_MinMaxLevels=2"]
[null,null,null,1.3,null,null,null,null,null,{"$f":"K61/$Z$5*12","v":{"$error":"#DIV/0!"}},{"$f":"Q61/$G$3","v":{"$error":"#DIV/0!"}},8.0678E-2,8.0678E-2,null,null,77,485.11,23,1.71,21.09,403.39,7.3800000000000004E-2,0.66,"StopLoss=65 ","TakeProfit=125 ","MinPreSignalCandleSize=20 ","SignalBarStopLossDistance=3 ","Stch_KPeriod=7 ","Stch_DPeriod=9 ","Stch_Slowing=5 ","RSI_Period=7 ","TR_TrailingStart=60 ","TR_TrailingDistance=65 ","TR_TrailingStep=1 ","BE_Start=30 ","BE_Level=5","VarOptimTest=0 ","Counter=1 ","Magic=1006 ","Slippage=3 ","Lot=0.2 ","MM_MaxRisk=0 ","PartClose_Targets_1=0 ","PartClose_Percents_1=0 ","PartClose_Targets_2=0 ","PartClose_Percents_2=0 ","ExceedPercent=30 ","MinSignalCandleSize=10 ","Stch_MinMaxLevels=2 ","RSI_MinMaxLevels=2"]
[null,null,null,1.3,null,null,null,null,null,{"$f":"K62/$Z$5*12","v":{"$error":"#DIV/0!"}},{"$f":"Q62/$G$3","v":{"$error":"#DIV/0!"}},8.1337999999999994E-2,8.1337999999999994E-2,null,null,79,628.15,24,1.74,26.17,406.69,7.4999999999999997E-2,0.77,"StopLoss=55 ","TakeProfit=125 ","MinPreSignalCandleSize=10 ","SignalBarStopLossDistance=6 ","Stch_KPeriod=5 ","Stch_DPeriod=9 ","Stch_Slowing=3 ","RSI_Period=11 ","TR_TrailingStart=30 ","TR_TrailingDistance=55 ","TR_TrailingStep=5 ","BE_Start=90 ","BE_Level=1","VarOptimTest=0 ","Counter=1 ","Magic=1006 ","Slippage=3 ","Lot=0.2 ","MM_MaxRisk=0 ","PartClose_Targets_1=0 ","PartClose_Percents_1=0 ","PartClose_Targets_2=0 ","PartClose_Percents_2=0 ","ExceedPercent=30 ","MinSignalCandleSize=10 ","Stch_MinMaxLevels=2 ","RSI_MinMaxLevels=2"]
[null,null,null,1.3,null,null,null,null,null,{"$f":"K63/$Z$5*12","v":{"$error":"#DIV/0!"}},{"$f":"Q63/$G$3","v":{"$error":"#DIV/0!"}},8.1337999999999994E-2,8.1337999999999994E-2,null,null,78,645.15,24,1.76,26.88,406.69,7.5600000000000001E-2,0.78,"StopLoss=65 ","TakeProfit=115 ","MinPreSignalCandleSize=10 ","SignalBarStopLossDistance=6 ","Stch_KPeriod=7 ","Stch_DPeriod=5 ","Stch_Slowing=7 ","RSI_Period=11 ","TR_TrailingStart=30 ","TR_TrailingDistance=55 ","TR_TrailingStep=5 ","BE_Start=80 ","BE_Level=1","VarOptimTest=0 ","Counter=1 ","Magic=1006 ","Slippage=3 ","Lot=0.2 ","MM_MaxRisk=0 ","PartClose_Targets_1=0 ","PartClose_Percents_1=0 ","PartClose_Targets_2=0 ","PartClose_Percents_2=0 ","ExceedPercent=30 ","MinSignalCandleSize=10 ","Stch_MinMaxLevels=2 ","RSI_MinMaxLevels=2"]
[null,null,null,1.3,null,null,null,null,null,{"$f":"K64/$Z$5*12","v":{"$error":"#DIV/0!"}},{"$f":"Q64/$G$3","v":{"$error":"#DIV/0!"}},8.3101999999999995E-2,8.3101999999999995E-2,null,null,80,1082.06,36,3.25,30.06,415.51,6.5000000000000002E-2,0.32,"StopLoss=60 ","TakeProfit=105 ","MinPreSignalCandleSize=10 ","SignalBarStopLossDistance=0 ","Stch_KPeriod=9 ","Stch_DPeriod=7 ","Stch_Slowing=5 ","RSI_Period=7 ","TR_TrailingStart=100 ","TR_TrailingDistance=85 ","TR_TrailingStep=1 ","BE_Start=10 ","BE_Level=5","VarOptimTest=0 ","Counter=1 ","Magic=1006 ","Slippage=3 ","Lot=0.2 ","MM_MaxRisk=0 ","PartClose_Targets_1=0 ","PartClose_Percents_1=0 ","PartClose_Targets_2=0 ","PartClose_Percents_2=0 ","ExceedPercent=30 ","MinSignalCandleSize=10 ","Stch_MinMaxLevels=2 ","RSI_MinMaxLevels=2"]
[null,null,null,1.3,null,null,null,null,null,{"$f":"K65/$Z$5*12","v":{"$error":"#DIV/0!"}},{"$f":"Q65/$G$3","v":{"$error":"#DIV/0!"}},8.3753999999999995E-2,8.3753999999999995E-2,null,null,81,476.06,24,1.66,19.84,418.77,8.3699999999999997E-2,0.62,"StopLoss=45 ","TakeProfit=125 ","MinPreSignalCandleSize=10 ","SignalBarStopLossDistance=3 ","Stch_KPeriod=7 ","Stch_DPeriod=7 ","Stch_Slowing=5 ","RSI_Period=11 ","TR_TrailingStart=60 ","TR_TrailingDistance=70 ","TR_TrailingStep=1 ","BE_Start=30 ","BE_Level=5","VarOptimTest=0 ","Counter=1 ","Magic=1006 ","Slippage=3 ","Lot=0.2 ","MM_MaxRisk=0 ","PartClose_Targets_1=0 ","PartClose_Percents_1=0 ","PartClose_Targets_2=0 ","PartClose_Percents_2=0 ","ExceedPercent=30 ","MinSignalCandleSize=10 ","Stch_MinMaxLevels=2 ","RSI_MinMaxLevels=2"]
[null,null,null,1.3,null,null,null,null,null,{"$f":"K66/$Z$5*12","v":{"$error":"#DIV/0!"}},{"$f":"Q66/$G$3","v":{"$error":"#DIV/0!"}},8.4862000000000007E-2,8.4862000000000007E-2,null,null,82,878.57,36,2.94,24.4,424.31,6.7599999999999993E-2,0.64,"StopLoss=60 ","TakeProfit=105 ","MinPreSignalCandleSize=10 ","SignalBarStopLossDistance=6 ","Stch_KPeriod=9 ","Stch_DPeriod=7 ","Stch_Slowing=5 ","RSI_Period=7 ","TR_TrailingStart=80 ","TR_TrailingDistance=85 ","TR_TrailingStep=1 ","BE_Start=10 ","BE_Level=1","VarOptimTest=0 ","Counter=1 ","Magic=1006 ","Slippage=3 ","Lot=0.2 ","MM_MaxRisk=0 ","PartClose_Targets_1=0 ","PartClose_Percents_1=0 ","PartClose_Targets_2=0 ","PartClose_Percents_2=0 ","ExceedPercent=30 ","MinSignalCandleSize=10 ","Stch_MinMaxLevels=2 ","RSI_MinMaxLevels=2"]
[null,null,null,1.3,null,null,null,null,null,{"$f":"K67/$Z$5*12","v":{"$error":"#DIV/0!"}},{"$f":"Q67/$G$3","v":{"$error":"#DIV/0!"}},8.5753999999999997E-2,8.5753999999999997E-2,null,null,83,844.9,23,2.2799999999999998,36.729999999999997,428.77,8.5699999999999998E-2,0.82,"StopLoss=60 ","TakeProfit=125 ","MinPreSignalCandleSize=10 ","SignalBarStopLossDistance=3 ","Stch_KPeriod=5 ","Stch_DPeriod=7 ","Stch_Slowing=7 ","RSI_Period=11 ","TR_TrailingStart=80 ","TR_TrailingDistance=45 ","TR_TrailingStep=1 ","BE_Start=20 ","BE_Level=5","VarOptimTest=0 ","Counter=1 ","Magic=1006 ","Slippage=3 ","Lot=0.2 ","MM_MaxRisk=0 ","PartClose_Targets_1=0 ","PartClose_Percents_1=0 ","PartClose_Targets_2=0 ","PartClose_Percents_2=0 ","ExceedPercent=30 ","MinSignalCandleSize=10 ","Stch_MinMaxLevels=2 ","RSI_MinMaxLevels=2"]
[null,null,null,1.3,null,null,null,null,null,{"$f":"K68/$Z$5*12","v":{"$error":"#DIV/0!"}},{"$f":"Q68/$G$3","v":{"$error":"#DIV/0!"}},8.6101999999999998E-2,8.6101999999999998E-2,null,null,84,872.37,36,2.92,24.23,430.51,6.8599999999999994E-2,0.63,"StopLoss=60 ","TakeProfit=105 ","MinPreSignalCandleSize=10 ","SignalBarStopLossDistance=6 ","Stch_KPeriod=9 ","Stch_DPeriod=7 ","Stch_Slowing=5 ","RSI_Period=7 ","TR_TrailingStart=100 ","TR_TrailingDistance=85 ","TR_TrailingStep=1 ","BE_Start=10 ","BE_Level=1","VarOptimTest=0 ","Counter=1 ","Magic=1006 ","Slippage=3 ","Lot=0.2 ","MM_MaxRisk=0 ","PartClose_Targets_1=0 ","PartClose_Percents_1=0 ","PartClose_Targets_2=0 ","PartClose_Percents_2=0 ","ExceedPercent=30 ","MinSignalCandleSize=10 ","Stch_MinMaxLevels=2 ","RSI_MinMaxLevels=2"]
[null,null,null,1.3,null,null,null,null,null,{"$f":"K69/$Z$5*12","v":{"$error":"#DIV/0!"}},{"$f":"Q69/$G$3","v":{"$error":"#DIV/0!"}},8.6279999999999996E-2,8.6279999999999996E-2,null,null,85,473.53,24,1.47,19.73,431.4,8.6199999999999999E-2,0.65,"StopLoss=65 ","TakeProfit=115 ","MinPreSignalCandleSize=10 ","SignalBarStopLossDistance=6 ","Stch_KPeriod=7 ","Stch_DPeriod=5 ","Stch_Slowing=7 ","RSI_Period=11 ","TR_TrailingStart=60 ","TR_TrailingDistance=55 ","TR_TrailingStep=5 ","BE_Start=80 ","BE_Level=1","VarOptimTest=0 ","Counter=1 ","Magic=1006 ","Slippage=3 ","Lot=0.2 ","MM_MaxRisk=0 ","PartClose_Targets_1=0 ","PartClose_Percents_1=0 ","PartClose_Targets_2=0 ","PartClose_Percents_2=0 ","ExceedPercent=30 ","MinSignalCandleSize=10 ","Stch_MinMaxLevels=2 ","RSI_MinMaxLevels=2"]
[null,null,null,1.3,null,null,null,null,null,{"$f":"K70/$Z$5*12","v":{"$error":"#DIV/0!"}},{"$f":"Q70/$G$3","v":{"$error":"#DIV/0!"}},8.7017999999999998E-2,8.7017999999999998E-2,null,null,86,526.41999999999996,36,1.57,14.62,435.09,8.1199999999999994E-2,0.54,"StopLoss=60 ","TakeProfit=105 ","MinPreSignalCandleSize=10 ","SignalBarStopLossDistance=6 ","Stch_KPeriod=7 ","Stch_DPeriod=7 ","Stch_Slowing=5 ","RSI_Period=7 ","TR_TrailingStart=100 ","TR_TrailingDistance=65 ","TR_TrailingStep=1 ","BE_Start=20 ","BE_Level=1","VarOptimTest=0 ","Counter=1 ","Magic=1006 ","Slippage=3 ","Lot=0.2 ","MM_MaxRisk=0 ","PartClose_Targets_1=0 ","PartClose_Percents_1=0 ","PartClose_Targets_2=0 ","PartClose_Percents_2=0 ","ExceedPercent=30 ","MinSignalCandleSize=10 ","Stch_MinMaxLevels=2 ","RSI_MinMaxLevels=2"]
[null,null,null,1.3,null,null,null,null,null,{"$f":"K71/$Z$5*12","v":{"$error":"#DIV/0!"}},{"$f":"Q71/$G$3","v":{"$error":"#DIV/0!"}},8.7354000000000001E-2,8.7354000000000001E-2,null,null,87,788.58,23,2.19,34.29,436.77,8.7300000000000003E-2,0.79,"StopLoss=60 ","TakeProfit=125 ","MinPreSignalCandleSize=10 ","SignalBarStopLossDistance=3 ","Stch_KPeriod=5 ","Stch_DPeriod=7 ","Stch_Slowing=7 ","RSI_Period=11 ","TR_TrailingStart=80 ","TR_TrailingDistance=45 ","TR_TrailingStep=1 ","BE_Start=20 ","BE_Level=1","VarOptimTest=0 ","Counter=1 ","Magic=1006 ","Slippage=3 ","Lot=0.2 ","MM_MaxRisk=0 ","PartClose_Targets_1=0 ","PartClose_Percents_1=0 ","PartClose_Targets_2=0 ","PartClose_Percents_2=0 ","ExceedPercent=30 ","MinSignalCandleSize=10 ","Stch_MinMaxLevels=2 ","RSI_MinMaxLevels=2"]
[null,null,null,1.3,null,null,null,null,null,{"$f":"K72/$Z$5*12","v":{"$error":"#DIV/0!"}},{"$f":"Q72/$G$3","v":{"$error":"#DIV/0!"}},9.0338000000000002E-2,9.0338000000000002E-2,null,null,88,538.26,36,1.55,14.95,451.69,8.4199999999999997E-2,0.53,"StopLoss=60 ","TakeProfit=105 ","MinPreSignalCandleSize=10 ","SignalBarStopLossDistance=6 ","Stch_KPeriod=9 ","Stch_DPeriod=7 ","Stch_Slowing=5 ","RSI_Period=7 ","TR_TrailingStart=100 ","TR_TrailingDistance=40 ","TR_TrailingStep=1 ","BE_Start=30 ","BE_Level=5","VarOptimTest=0 ","Counter=1 ","Magic=1006 ","Slippage=3 ","Lot=0.2 ","MM_MaxRisk=0 ","PartClose_Targets_1=0 ","PartClose_Percents_1=0 ","PartClose_Targets_2=0 ","PartClose_Percents_2=0 ","ExceedPercent=30 ","MinSignalCandleSize=10 ","Stch_MinMaxLevels=2 ","RSI_MinMaxLevels=2"]
[null,null,null,1.3,null,null,null,null,null,{"$f":"K73/$Z$5*12","v":{"$error":"#DIV/0!"}},{"$f":"Q73/$G$3","v":{"$error":"#DIV/0!"}},9.1761999999999996E-2,9.1761999999999996E-2,null,null,89,518.1,27,1.43,19.190000000000001,458.81,8.4599999999999995E-2,0.62,"StopLoss=40 ","TakeProfit=90 ","MinPreSignalCandleSize=10 ","SignalBarStopLossDistance=0 ","Stch_KPeriod=7 ","Stch_DPeriod=9 ","Stch_Slowing=5 ","RSI_Period=9 ","TR_TrailingStart=80 ","TR_TrailingDistance=65 ","TR_TrailingStep=5 ","BE_Start=60 ","BE_Level=5","VarOptimTest=0 ","Counter=1 ","Magic=1006 ","Slippage=3 ","Lot=0.2 ","MM_MaxRisk=0 ","PartClose_Targets_1=0 ","PartClose_Percents_1=0 ","PartClose_Targets_2=0 ","PartClose_Percents_2=0 ","ExceedPercent=30 ","MinSignalCandleSize=10 ","Stch_MinMaxLevels=2 ","RSI_MinMaxLevels=2"]
[null,null,null,1.3,null,null,null,null,null,{"$f":"K74/$Z$5*12","v":{"$error":"#DIV/0!"}},{"$f":"Q74/$G$3","v":{"$error":"#DIV/0!"}},9.4353999999999993E-2,9.4353999999999993E-2,null,null,90,673.34,24,1.75,28.06,471.77,9.4200000000000006E-2,0.8,"StopLoss=45 ","TakeProfit=90 ","MinPreSignalCandleSize=10 ","SignalBarStopLossDistance=3 ","Stch_KPeriod=9 ","Stch_DPeriod=3 ","Stch_Slowing=3 ","RSI_Period=11 ","TR_TrailingStart=20 ","TR_TrailingDistance=60 ","TR_TrailingStep=1 ","BE_Start=60 ","BE_Level=1","VarOptimTest=0 ","Counter=1 ","Magic=1006 ","Slippage=3 ","Lot=0.2 ","MM_MaxRisk=0 ","PartClose_Targets_1=0 ","PartClose_Percents_1=0 ","PartClose_Targets_2=0 ","PartClose_Percents_2=0 ","ExceedPercent=30 ","MinSignalCandleSize=10 ","Stch_MinMaxLevels=2 ","RSI_MinMaxLevels=2"]
[null,null,null,1.3,null,null,null,null,null,{"$f":"K75/$Z$5*12","v":{"$error":"#DIV/0!"}},{"$f":"Q75/$G$3","v":{"$error":"#DIV/0!"}},9.5680000000000001E-2,9.5680000000000001E-2,null,null,91,1045.6400000000001,24,2.0299999999999998,43.57,478.4,9.5600000000000004E-2,0.9,"StopLoss=65 ","TakeProfit=115 ","MinPreSignalCandleSize=10 ","SignalBarStopLossDistance=6 ","Stch_KPeriod=7 ","Stch_DPeriod=5 ","Stch_Slowing=7 ","RSI_Period=11 ","TR_TrailingStart=50 ","TR_TrailingDistance=80 ","TR_TrailingStep=1 ","BE_Start=50 ","BE_Level=5","VarOptimTest=0 ","Counter=1 ","Magic=1006 ","Slippage=3 ","Lot=0.2 ","MM_MaxRisk=0 ","PartClose_Targets_1=0 ","PartClose_Percents_1=0 ","PartClose_Targets_2=0 ","PartClose_Percents_2=0 ","ExceedPercent=30 ","MinSignalCandleSize=10 ","Stch_MinMaxLevels=2 ","RSI_MinMaxLevels=2"]
[null,null,null,1.3,null,null,null,null,null,{"$f":"K76/$Z$5*12","v":{"$error":"#DIV/0!"}},{"$f":"Q76/$G$3","v":{"$error":"#DIV/0!"}},9.6560000000000007E-2,9.6560000000000007E-2,null,null,92,1315.36,24,2.2999999999999998,54.81,482.8,9.64E-2,1.02,"StopLoss=45 ","TakeProfit=125 ","MinPreSignalCandleSize=10 ","SignalBarStopLossDistance=6 ","Stch_KPeriod=7 ","Stch_DPeriod=9 ","Stch_Slowing=5 ","RSI_Period=11 ","TR_TrailingStart=80 ","TR_TrailingDistance=95 ","TR_TrailingStep=1 ","BE_Start=50 ","BE_Level=5","VarOptimTest=0 ","Counter=1 ","Magic=1006 ","Slippage=3 ","Lot=0.2 ","MM_MaxRisk=0 ","PartClose_Targets_1=0 ","PartClose_Percents_1=0 ","PartClose_Targets_2=0 ","PartClose_Percents_2=0 ","ExceedPercent=30 ","MinSignalCandleSize=10 ","Stch_MinMaxLevels=2 ","RSI_MinMaxLevels=2"]
[null,null,null,1.3,null,null,null,null,null,{"$f":"K77/$Z$5*12","v":{"$error":"#DIV/0!"}},{"$f":"Q77/$G$3","v":{"$error":"#DIV/0!"}},9.7865999999999995E-2,9.7865999999999995E-2,null,null,93,847.61,36,2.76,23.54,489.33,7.8200000000000006E-2,0.4,"StopLoss=60 ","TakeProfit=105 ","MinPreSignalCandleSize=10 ","SignalBarStopLossDistance=0 ","Stch_KPeriod=9 ","Stch_DPeriod=7 ","Stch_Slowing=5 ","RSI_Period=7 ","TR_TrailingStart=100 ","TR_TrailingDistance=85 ","TR_TrailingStep=1 ","BE_Start=10 ","BE_Level=1","VarOptimTest=0 ","Counter=1 ","Magic=1006 ","Slippage=3 ","Lot=0.2 ","MM_MaxRisk=0 ","PartClose_Targets_1=0 ","PartClose_Percents_1=0 ","PartClose_Targets_2=0 ","PartClose_Percents_2=0 ","ExceedPercent=30 ","MinSignalCandleSize=10 ","Stch_MinMaxLevels=2 ","RSI_MinMaxLevels=2"]
[null,null,null,1.3,null,null,null,null,null,{"$f":"K78/$Z$5*12","v":{"$error":"#DIV/0!"}},{"$f":"Q78/$G$3","v":{"$error":"#DIV/0!"}},9.8159999999999997E-2,9.8159999999999997E-2,null,null,94,1283.76,24,2.27,53.49,490.8,9.8000000000000004E-2,1.01,"StopLoss=45 ","TakeProfit=125 ","MinPreSignalCandleSize=10 ","SignalBarStopLossDistance=6 ","Stch_KPeriod=7 ","Stch_DPeriod=9 ","Stch_Slowing=5 ","RSI_Period=11 ","TR_TrailingStart=80 ","TR_TrailingDistance=95 ","TR_TrailingStep=1 ","BE_Start=50 ","BE_Level=1","VarOptimTest=0 ","Counter=1 ","Magic=1006 ","Slippage=3 ","Lot=0.2 ","MM_MaxRisk=0 ","PartClose_Targets_1=0 ","PartClose_Percents_1=0 ","PartClose_Targets_2=0 ","PartClose_Percents_2=0 ","ExceedPercent=30 ","MinSignalCandleSize=10 ","Stch_MinMaxLevels=2 ","RSI_MinMaxLevels=2"]
[null,null,null,1.3,null,null,null,null,null,{"$f":"K79/$Z$5*12","v":{"$error":"#DIV/0!"}},{"$f":"Q79/$G$3","v":{"$error":"#DIV/0!"}},9.981799999999999E-2,9.981799999999999E-2,null,null,95,648.28,36,1.66,18.010000000000002,499.09,9.1800000000000007E-2,0.56999999999999995,"StopLoss=50 ","TakeProfit=105 ","MinPreSignalCandleSize=10 ","SignalBarStopLossDistance=6 ","Stch_KPeriod=7 ","Stch_DPeriod=9 ","Stch_Slowing=7 ","RSI_Period=7 ","TR_TrailingStart=60 ","TR_TrailingDistance=65 ","TR_TrailingStep=1 ","BE_Start=30 ","BE_Level=5","VarOptimTest=0 ","Counter=1 ","Magic=1006 ","Slippage=3 ","Lot=0.2 ","MM_MaxRisk=0 ","PartClose_Targets_1=0 ","PartClose_Percents_1=0 ","PartClose_Targets_2=0 ","PartClose_Percents_2=0 ","ExceedPercent=30 ","MinSignalCandleSize=10 ","Stch_MinMaxLevels=2 ","RSI_MinMaxLevels=2"]
[null,null,null,1.3,null,null,null,null,null,{"$f":"K80/$Z$5*12","v":{"$error":"#DIV/0!"}},{"$f":"Q80/$G$3","v":{"$error":"#DIV/0!"}},0.10141799999999999,0.10141799999999999,null,null,96,544.88,36,1.55,15.14,507.09,9.4500000000000001E-2,0.56999999999999995,"StopLoss=50 ","TakeProfit=105 ","MinPreSignalCandleSize=10 ","SignalBarStopLossDistance=6 ","Stch_KPeriod=7 ","Stch_DPeriod=9 ","Stch_Slowing=7 ","RSI_Period=7 ","TR_TrailingStart=60 ","TR_TrailingDistance=65 ","TR_TrailingStep=1 ","BE_Start=30 ","BE_Level=1","VarOptimTest=0 ","Counter=1 ","Magic=1006 ","Slippage=3 ","Lot=0.2 ","MM_MaxRisk=0 ","PartClose_Targets_1=0 ","PartClose_Percents_1=0 ","PartClose_Targets_2=0 ","PartClose_Percents_2=0 ","ExceedPercent=30 ","MinSignalCandleSize=10 ","Stch_MinMaxLevels=2 ","RSI_MinMaxLevels=2"]
[null,null,null,1.3,null,null,null,null,null,{"$f":"K81/$Z$5*12","v":{"$error":"#DIV/0!"}},{"$f":"Q81/$G$3","v":{"$error":"#DIV/0!"}},0.10765799999999999,0.10765799999999999,null,null,97,730.83,33,1.5,22.15,538.29,9.2200000000000004E-2,0.7,"StopLoss=60 ","TakeProfit=105 ","MinPreSignalCandleSize=10 ","SignalBarStopLossDistance=6 ","Stch_KPeriod=9 ","Stch_DPeriod=3 ","Stch_Slowing=9 ","RSI_Period=7 ","TR_TrailingStart=50 ","TR_TrailingDistance=80 ","TR_TrailingStep=1 ","BE_Start=0 ","BE_Level=1","VarOptimTest=0 ","Counter=1 ","Magic=1006 ","Slippage=3 ","Lot=0.2 ","MM_MaxRisk=0 ","PartClose_Targets_1=0 ","PartClose_Percents_1=0 ","PartClose_Targets_2=0 ","PartClose_Percents_2=0 ","ExceedPercent=30 ","MinSignalCandleSize=10 ","Stch_MinMaxLevels=2 ","RSI_MinMaxLevels=2"]
[null,null,null,1.3,null,null,null,null,null,{"$f":"K82/$Z$5*12","v":{"$error":"#DIV/0!"}},{"$f":"Q82/$G$3","v":{"$error":"#DIV/0!"}},0.10871600000000001,0.10871600000000001,null,null,98,1309.4000000000001,24,2.2999999999999998,54.56,543.58000000000004,0.1086,1.05,"StopLoss=45 ","TakeProfit=125 ","MinPreSignalCandleSize=10 ","SignalBarStopLossDistance=3 ","Stch_KPeriod=7 ","Stch_DPeriod=9 ","Stch_Slowing=5 ","RSI_Period=11 ","TR_TrailingStart=80 ","TR_TrailingDistance=95 ","TR_TrailingStep=1 ","BE_Start=50 ","BE_Level=5","VarOptimTest=0 ","Counter=1 ","Magic=1006 ","Slippage=3 ","Lot=0.2 ","MM_MaxRisk=0 ","PartClose_Targets_1=0 ","PartClose_Percents_1=0 ","PartClose_Targets_2=0 ","PartClose_Percents_2=0 ","ExceedPercent=30 ","MinSignalCandleSize=10 ","Stch_MinMaxLevels=2 ","RSI_MinMaxLevels=2"]
[null,null,null,1.3,null,null,null,null,null,{"$f":"K83/$Z$5*12","v":{"$error":"#DIV/0!"}},{"$f":"Q83/$G$3","v":{"$error":"#DIV/0!"}},0.10893800000000001,0.10893800000000001,null,null,99,1076.6400000000001,36,1.76,29.91,544.69000000000005,0.1018,0.81,"StopLoss=45 ","TakeProfit=130 ","MinPreSignalCandleSize=10 ","SignalBarStopLossDistance=3 ","Stch_KPeriod=7 ","Stch_DPeriod=9 ","Stch_Slowing=5 ","RSI_Period=7 ","TR_TrailingStart=80 ","TR_TrailingDistance=95 ","TR_TrailingStep=1 ","BE_Start=50 ","BE_Level=5","VarOptimTest=0 ","Counter=1 ","Magic=1006 ","Slippage=3 ","Lot=0.2 ","MM_MaxRisk=0 ","PartClose_Targets_1=0 ","PartClose_Percents_1=0 ","PartClose_Targets_2=0 ","PartClose_Percents_2=0 ","ExceedPercent=30 ","MinSignalCandleSize=10 ","Stch_MinMaxLevels=2 ","RSI_MinMaxLevels=2"]
[null,null,null,1.3,null,null,null,null,null,{"$f":"K84/$Z$5*12","v":{"$error":"#DIV/0!"}},{"$f":"Q84/$G$3","v":{"$error":"#DIV/0!"}},0.10965799999999999,0.10965799999999999,null,null,100,718.07,26,1.63,27.62,548.29,9.7900000000000001E-2,0.76,"StopLoss=70 ","TakeProfit=125 ","MinPreSignalCandleSize=10 ","SignalBarStopLossDistance=6 ","Stch_KPeriod=9 ","Stch_DPeriod=5 ","Stch_Slowing=9 ","RSI_Period=9 ","TR_TrailingStart=80 ","TR_TrailingDistance=85 ","TR_TrailingStep=1 ","BE_Start=50 ","BE_Level=5","VarOptimTest=0 ","Counter=1 ","Magic=1006 ","Slippage=3 ","Lot=0.2 ","MM_MaxRisk=0 ","PartClose_Targets_1=0 ","PartClose_Percents_1=0 ","PartClose_Targets_2=0 ","PartClose_Percents_2=0 ","ExceedPercent=30 ","MinSignalCandleSize=10 ","Stch_MinMaxLevels=2 ","RSI_MinMaxLevels=2"]
[null,null,null,1.3,null,null,null,null,null,{"$f":"K85/$Z$5*12","v":{"$error":"#DIV/0!"}},{"$f":"Q85/$G$3","v":{"$error":"#DIV/0!"}},0.111578,0.111578,null,null,101,613.25,27,1.46,22.71,557.89,0.10199999999999999,0.53,"StopLoss=55 ","TakeProfit=65 ","MinPreSignalCandleSize=10 ","SignalBarStopLossDistance=0 ","Stch_KPeriod=5 ","Stch_DPeriod=5 ","Stch_Slowing=7 ","RSI_Period=9 ","TR_TrailingStart=0 ","TR_TrailingDistance=20 ","TR_TrailingStep=5 ","BE_Start=0 ","BE_Level=5","VarOptimTest=0 ","Counter=1 ","Magic=1006 ","Slippage=3 ","Lot=0.2 ","MM_MaxRisk=0 ","PartClose_Targets_1=0 ","PartClose_Percents_1=0 ","PartClose_Targets_2=0 ","PartClose_Percents_2=0 ","ExceedPercent=30 ","MinSignalCandleSize=10 ","Stch_MinMaxLevels=2 ","RSI_MinMaxLevels=2"]
[null,null,null,1.3,null,null,null,null,null,{"$f":"K86/$Z$5*12","v":{"$error":"#DIV/0!"}},{"$f":"Q86/$G$3","v":{"$error":"#DIV/0!"}},0.11176199999999999,0.11176199999999999,null,null,102,1057.06,36,1.58,29.36,558.80999999999995,0.1036,0.63,"StopLoss=50 ","TakeProfit=80 ","MinPreSignalCandleSize=10 ","SignalBarStopLossDistance=0 ","Stch_KPeriod=5 ","Stch_DPeriod=3 ","Stch_Slowing=7 ","RSI_Period=7 ","TR_TrailingStart=0 ","TR_TrailingDistance=25 ","TR_TrailingStep=5 ","BE_Start=0 ","BE_Level=1","VarOptimTest=0 ","Counter=1 ","Magic=1006 ","Slippage=3 ","Lot=0.2 ","MM_MaxRisk=0 ","PartClose_Targets_1=0 ","PartClose_Percents_1=0 ","PartClose_Targets_2=0 ","PartClose_Percents_2=0 ","ExceedPercent=30 ","MinSignalCandleSize=10 ","Stch_MinMaxLevels=2 ","RSI_MinMaxLevels=2"]
[null,null,null,1.3,null,null,null,null,null,{"$f":"K87/$Z$5*12","v":{"$error":"#DIV/0!"}},{"$f":"Q87/$G$3","v":{"$error":"#DIV/0!"}},0.1119,0.1119,null,null,103,1057.23,27,1.93,39.159999999999997,559.5,8.9399999999999993E-2,0.89,"StopLoss=40 ","TakeProfit=120 ","MinPreSignalCandleSize=10 ","SignalBarStopLossDistance=6 ","Stch_KPeriod=9 ","Stch_DPeriod=5 ","Stch_Slowing=3 ","RSI_Period=9 ","TR_TrailingStart=90 ","TR_TrailingDistance=90 ","TR_TrailingStep=1 ","BE_Start=80 ","BE_Level=1","VarOptimTest=0 ","Counter=1 ","Magic=1006 ","Slippage=3 ","Lot=0.2 ","MM_MaxRisk=0 ","PartClose_Targets_1=0 ","PartClose_Percents_1=0 ","PartClose_Targets_2=0 ","PartClose_Percents_2=0 ","ExceedPercent=30 ","MinSignalCandleSize=10 ","Stch_MinMaxLevels=2 ","RSI_MinMaxLevels=2"]
[null,null,null,1.3,null,null,null,null,null,{"$f":"K88/$Z$5*12","v":{"$error":"#DIV/0!"}},{"$f":"Q88/$G$3","v":{"$error":"#DIV/0!"}},0.11308199999999999,0.11308199999999999,null,null,104,822.39,27,1.68,30.46,565.41,0.1021,0.72,"StopLoss=40 ","TakeProfit=90 ","MinPreSignalCandleSize=10 ","SignalBarStopLossDistance=0 ","Stch_KPeriod=9 ","Stch_DPeriod=9 ","Stch_Slowing=5 ","RSI_Period=9 ","TR_TrailingStart=60 ","TR_TrailingDistance=55 ","TR_TrailingStep=1 ","BE_Start=0 ","BE_Level=5","VarOptimTest=0 ","Counter=1 ","Magic=1006 ","Slippage=3 ","Lot=0.2 ","MM_MaxRisk=0 ","PartClose_Targets_1=0 ","PartClose_Percents_1=0 ","PartClose_Targets_2=0 ","PartClose_Percents_2=0 ","ExceedPercent=30 ","MinSignalCandleSize=10 ","Stch_MinMaxLevels=2 ","RSI_MinMaxLevels=2"]
[null,null,null,1.3,null,null,null,null,null,{"$f":"K89/$Z$5*12","v":{"$error":"#DIV/0!"}},{"$f":"Q89/$G$3","v":{"$error":"#DIV/0!"}},0.113104,0.113104,null,null,105,820.22,23,1.81,35.659999999999997,565.52,0.113,0.82,"StopLoss=40 ","TakeProfit=120 ","MinPreSignalCandleSize=10 ","SignalBarStopLossDistance=6 ","Stch_KPeriod=5 ","Stch_DPeriod=9 ","Stch_Slowing=9 ","RSI_Period=11 ","TR_TrailingStart=80 ","TR_TrailingDistance=85 ","TR_TrailingStep=1 ","BE_Start=0 ","BE_Level=1","VarOptimTest=0 ","Counter=1 ","Magic=1006 ","Slippage=3 ","Lot=0.2 ","MM_MaxRisk=0 ","PartClose_Targets_1=0 ","PartClose_Percents_1=0 ","PartClose_Targets_2=0 ","PartClose_Percents_2=0 ","ExceedPercent=30 ","MinSignalCandleSize=10 ","Stch_MinMaxLevels=2 ","RSI_MinMaxLevels=2"]
[null,null,null,1.3,null,null,null,null,null,{"$f":"K90/$Z$5*12","v":{"$error":"#DIV/0!"}},{"$f":"Q90/$G$3","v":{"$error":"#DIV/0!"}},0.11844200000000001,0.11844200000000001,null,null,106,643.05999999999995,23,1.57,27.96,592.21,0.1183,0.73,"StopLoss=40 ","TakeProfit=120 ","MinPreSignalCandleSize=10 ","SignalBarStopLossDistance=0 ","Stch_KPeriod=5 ","Stch_DPeriod=9 ","Stch_Slowing=9 ","RSI_Period=11 ","TR_TrailingStart=80 ","TR_TrailingDistance=85 ","TR_TrailingStep=1 ","BE_Start=0 ","BE_Level=1","VarOptimTest=0 ","Counter=1 ","Magic=1006 ","Slippage=3 ","Lot=0.2 ","MM_MaxRisk=0 ","PartClose_Targets_1=0 ","PartClose_Percents_1=0 ","PartClose_Targets_2=0 ","PartClose_Percents_2=0 ","ExceedPercent=30 ","MinSignalCandleSize=10 ","Stch_MinMaxLevels=2 ","RSI_MinMaxLevels=2"]
[null,null,null,1.3,null,null,null,null,null,{"$f":"K91/$Z$5*12","v":{"$error":"#DIV/0!"}},{"$f":"Q91/$G$3","v":{"$error":"#DIV/0!"}},0.119362,0.119362,null,null,107,898.9,23,1.98,39.08,596.80999999999995,9.7000000000000003E-2,0.86,"StopLoss=45 ","TakeProfit=105 ","MinPreSignalCandleSize=20 ","SignalBarStopLossDistance=6 ","Stch_KPeriod=7 ","Stch_DPeriod=5 ","Stch_Slowing=5 ","RSI_Period=7 ","TR_TrailingStart=70 ","TR_TrailingDistance=85 ","TR_TrailingStep=1 ","BE_Start=70 ","BE_Level=5","VarOptimTest=0 ","Counter=1 ","Magic=1006 ","Slippage=3 ","Lot=0.2 ","MM_MaxRisk=0 ","PartClose_Targets_1=0 ","PartClose_Percents_1=0 ","PartClose_Targets_2=0 ","PartClose_Percents_2=0 ","ExceedPercent=30 ","MinSignalCandleSize=10 ","Stch_MinMaxLevels=2 ","RSI_MinMaxLevels=2"]

{"sheet":"Лист2","index":1,"n_rows":0,"n_cols":0,"rows_kept":0,"cut":false,"hidden":false,"merged":[]}

{"sheet":"Лист3","index":2,"n_rows":0,"n_cols":0,"rows_kept":0,"cut":false,"hidden":false,"merged":[]}